Workbook

Sheet Instructions
A1: गुरुजनों सादर नमस्कार
A3: आपकी सेवार्थ मेरा एक और छोटा सा प्रयास ----------------
A5: CASH BOOK
A7: कैश बुक भरते समय होने वाली गलतियाँ जैसे बैलेंस का न मिलना, जोड़ घटाव में गलती आदि से बचने के लिए मैने यह एक प्रयास किया है हो सकता है इसमें कोई कमी हो तो आप विद्वजनो से निवेदन है की आप मुझे इसमें जो करेक्शन्स करने है उनके बारे में अवगत करावे ताकि मै इसे और सुविधाजनक बना सकू |
A9: इसे प्रयोग में लेने का तरीका
A11: सर्वप्रथम Cash Book Mad वाली शीट में आप अपनी कैश बुक में प्रचलित मद लिखे अगर लिखे गये मदों के अलावा भी आपके मद है तो आप लिस्ट में जहा other लिखा है वहा पर ऐड कर सकते है |
A13: इसके बाद Opening Balance वाली शीट में आप Blue Color की cells में एंट्री नहीं करे केवल Opening Balance वाले कॉलम में मद के सामने In Bank और Cash में एंट्री करे |
A15: तत्पश्चात Entry वाली शीट में Receipt वाले कोलम में जो राशि जिस मद में आई है वो मद सेलेक्ट करके विवरण लिखे तथा राशि का इन्द्राज करे | Payment वाले कोलम में जो राशि आपने खर्च की उसका मद सेलेक्ट करके विवरण लिखे तथा राशि का इन्द्राज करे |
A17: अब आपकी कैश बुक तैयार है आप Receipt और Payment वाली शीट्स का प्रिंट ले सकते है |
A19: Receipt वाली शीट में केवल cash वाले कोलम में एंट्री करे जो राशि कैश में आई है उसका इन्द्राज cash वाले कोलम में करे |बाकी अन्य किसी भी कोलम में एंट्री करने की आवश्यकता नही है |
A21: Payment वाली शीट में केवल cash वाले कोलम में एंट्री करे जिस राशि का पेमेंट आपने कैश में दिया है उसका इन्द्राज cash वाले कोलम में करे |बाकी अन्य किसी भी कोलम में एंट्री करने की आवश्यकता नही है |
B23: For Any Problem you can contact
A29: +91 9166023711 | F29: sspkctakumar@gmail.com

Sheet Cash Book Mad
A1: Government Senior Secondary School, Rooppura
A2: Mad | B2: इस लिस्ट में आप अपनी कैश बुक में प्रचलित मद लिखे अगर लिखे गये मदों के अलावा भी आपके मद है तो आप लिस्ट में जहा other लिखा है वहा पर ऐड कर सकते है |
A3: CSG
A4: Vikas Kosh
A5: Scout Guide
A6: SMC Training
A7: Internet
A8: Cycle and Transport Voucher
A9: Scholarship | G9: Opening Balance भरने के लिए इस आइकॉन पर क्लिक करे |
A10: Science
A11: Gas Subcidy, MDM, Cook-Cum Helper
A12: Bhawan Nirman
A13: Bank Interest
A14: School Repairing
A15: Lab
A16: Game related
A17: Liberary
A18: Electricty/Water Bill
A19: FVC
A20: Other1
A21: Other2
A22: Other3
A23: Other4
A24: Other5
A25: Other6
A26: Other7
A27: Other8
A28: Other9
A29: Other10
A30: Other11
A31: Other12
A32: Other13

Sheet Opening Balance
A1: ='Cash Book Mad'!A1 -> Government Senior Secondary School, Rooppura | K1: Blue Color की cells में एंट्री नहीं करनी है केवल Opening Balance वाले कॉलम मद के सामने वाले कॉलम में In Bank और Cash में एंट्री करे |
A2: Opening Balance Date- | I2: 2020-07-01
A3: क्र.स. | B3: मद | C3: Opening Balance | E3: After Receipt Balance | G3: Payment | I3: Closing Balance (After Payment)
C4: In Bank | D4: Cash | E4: In Bank | F4: Cash | G4: By Bank | H4: Cash | I4: In Bank | J4: Cash
A5: 1 | B5: ='Cash Book Mad'!A3 -> CSG | C5: 0.00 | D5: 550.00 | E5: =IFERROR(HLOOKUP(B5,receipt_entry,47,0),"") -> 50000.00 | F5: =Receipt!X48 -> 5550.00 | G5: =IFERROR(HLOOKUP(B5,payment_entry,44,0),"") -> 0.00 | H5: =Payment!X45 -> 0.00 | I5: =IFERROR(E5-G5,"") -> 50000.00 | J5: =F5-H5 -> 5550.00
A6: 2 | B6: ='Cash Book Mad'!A4 -> Vikas Kosh | C6: 10226.40 | E6: =IFERROR(HLOOKUP(B6,receipt_entry,47,0),"") -> 15226.40 | G6: =IFERROR(HLOOKUP(B6,payment_entry,44,0),"") -> 0.00 | I6: =IFERROR(E6-G6,"") -> 15226.40
A7: 3 | B7: ='Cash Book Mad'!A5 -> Scout Guide | C7: 7150.00 | E7: =IFERROR(HLOOKUP(B7,receipt_entry,47,0),"") -> 7150.00 | G7: =IFERROR(HLOOKUP(B7,payment_entry,44,0),"") -> 0.00 | I7: 7150.00
A8: 4 | B8: ='Cash Book Mad'!A6 -> SMC Training | C8: 0.00 | E8: =IFERROR(HLOOKUP(B8,receipt_entry,47,0),"") -> 0.00 | G8: =IFERROR(HLOOKUP(B8,payment_entry,44,0),"") -> 0.00 | I8: 0.00
A9: 5 | B9: ='Cash Book Mad'!A7 -> Internet | C9: 3252.00 | E9: =IFERROR(HLOOKUP(B9,receipt_entry,47,0),"") -> 3252.00 | G9: =IFERROR(HLOOKUP(B9,payment_entry,44,0),"") -> 0.00 | I9: 3252.00
A10: 6 | B10: ='Cash Book Mad'!A8 -> Cycle and Transport Voucher | C10: 20740.00 | E10: =IFERROR(HLOOKUP(B10,receipt_entry,47,0),"") -> 20740.00 | G10: =IFERROR(HLOOKUP(B10,payment_entry,44,0),"") -> 0.00 | I10: 20740.00
A11: 7 | B11: ='Cash Book Mad'!A9 -> Scholarship | C11: 3600.00 | E11: =IFERROR(HLOOKUP(B11,receipt_entry,47,0),"") -> 3600.00 | G11: =IFERROR(HLOOKUP(B11,payment_entry,44,0),"") -> 0.00 | I11: 3600.00
A12: 8 | B12: ='Cash Book Mad'!A10 -> Science | C12: 10000.00 | E12: =IFERROR(HLOOKUP(B12,receipt_entry,47,0),"") -> 10000.00 | G12: =IFERROR(HLOOKUP(B12,payment_entry,44,0),"") -> 0.00 | I12: 10000.00 | L12: Entry (Cr /Dr ) करने के लिए इस आइकॉन पर क्लिक करे |
A13: 9 | B13: ='Cash Book Mad'!A11 -> Gas Subcidy, MDM, Cook-Cum Helper | C13: 60663.42 | E13: =IFERROR(HLOOKUP(B13,receipt_entry,47,0),"") -> 60663.42 | G13: =IFERROR(HLOOKUP(B13,payment_entry,44,0),"") -> 50545.00 | I13: 10118.42
A14: 10 | B14: ='Cash Book Mad'!A12 -> Bhawan Nirman | C14: 0.00 | E14: =IFERROR(HLOOKUP(B14,receipt_entry,47,0),"") -> 0.00 | G14: =IFERROR(HLOOKUP(B14,payment_entry,44,0),"") -> 0.00 | I14: 0.00
A15: 11 | B15: ='Cash Book Mad'!A13 -> Bank Interest | C15: 32824.72 | E15: =IFERROR(HLOOKUP(B15,receipt_entry,47,0),"") -> 32824.72 | G15: =IFERROR(HLOOKUP(B15,payment_entry,44,0),"") -> 0.00 | I15: 32824.72
A16: 12 | B16: ='Cash Book Mad'!A14 -> School Repairing | C16: 0.00 | E16: =IFERROR(HLOOKUP(B16,receipt_entry,47,0),"") -> 0.00 | G16: =IFERROR(HLOOKUP(B16,payment_entry,44,0),"") -> 0.00 | I16: 0.00
A17: 13 | B17: ='Cash Book Mad'!A15 -> Lab | C17: 0.00 | E17: =IFERROR(HLOOKUP(B17,receipt_entry,47,0),"") -> 0.00 | G17: =IFERROR(HLOOKUP(B17,payment_entry,44,0),"") -> 0.00 | I17: 0.00
A18: 14 | B18: ='Cash Book Mad'!A16 -> Game related | C18: 0.00 | E18: =IFERROR(HLOOKUP(B18,receipt_entry,47,0),"") -> 0.00 | G18: =IFERROR(HLOOKUP(B18,payment_entry,44,0),"") -> 0.00 | I18: 0.00
A19: 15 | B19: ='Cash Book Mad'!A17 -> Liberary | C19: 0.00 | E19: =IFERROR(HLOOKUP(B19,receipt_entry,47,0),"") -> 0.00 | G19: =IFERROR(HLOOKUP(B19,payment_entry,44,0),"") -> 0.00 | I19: 0.00
A20: 16 | B20: ='Cash Book Mad'!A18 -> Electricty/Water Bill | C20: 0.00 | E20: =IFERROR(HLOOKUP(B20,receipt_entry,47,0),"") -> 0.00 | G20: =IFERROR(HLOOKUP(B20,payment_entry,44,0),"") -> 0.00 | I20: 0.00
A21: 17 | B21: ='Cash Book Mad'!A19 -> FVC | C21: 500.00 | E21: =IFERROR(HLOOKUP(B21,receipt_entry,47,0),"") -> 500.00 | G21: =IFERROR(HLOOKUP(B21,payment_entry,44,0),"") -> 0.00 | I21: 500.00
A22: 18 | B22: ='Cash Book Mad'!A20 -> Other1 | C22: 3526.00 | E22: =IFERROR(HLOOKUP(B22,receipt_entry,47,0),"") -> 3526.00 | G22: =IFERROR(HLOOKUP(B22,payment_entry,44,0),"") -> 0.00 | I22: 3526.00 | L22: क्या करू ????????
A23: 19 | B23: ='Cash Book Mad'!A21 -> Other2 | C23: 0.00 | E23: =IFERROR(HLOOKUP(B23,receipt_entry,47,0),"") -> 0.00 | G23: =IFERROR(HLOOKUP(B23,payment_entry,44,0),"") -> 0.00 | I23: 0.00
A24: 20 | B24: ='Cash Book Mad'!A22 -> Other3 | C24: 0.00 | E24: =IFERROR(HLOOKUP(B24,receipt_entry,47,0),"") ->  | G24: =IFERROR(HLOOKUP(B24,payment_entry,44,0),"") -> 
A25: 21 | B25: ='Cash Book Mad'!A23 -> Other4 | C25: 0.00 | E25: =IFERROR(HLOOKUP(B25,receipt_entry,47,0),"") ->  | G25: =IFERROR(HLOOKUP(B25,payment_entry,44,0),"") -> 
A26: 22 | B26: ='Cash Book Mad'!A24 -> Other5 | C26: 0.00 | E26: =IFERROR(HLOOKUP(B26,receipt_entry,47,0),"") ->  | G26: =IFERROR(HLOOKUP(B26,payment_entry,44,0),"") -> 
A27: 23 | B27: ='Cash Book Mad'!A25 -> Other6 | C27: 0.00 | E27: =IFERROR(HLOOKUP(B27,receipt_entry,47,0),"") ->  | G27: =IFERROR(HLOOKUP(B27,payment_entry,44,0),"") -> 
A28: 24 | B28: ='Cash Book Mad'!A26 -> Other7 | C28: 0.00 | E28: =IFERROR(HLOOKUP(B28,receipt_entry,47,0),"") ->  | G28: =IFERROR(HLOOKUP(B28,payment_entry,44,0),"") -> 
A29: 25 | B29: ='Cash Book Mad'!A27 -> Other8 | C29: 0.00 | E29: =IFERROR(HLOOKUP(B29,receipt_entry,47,0),"") ->  | G29: =IFERROR(HLOOKUP(B29,payment_entry,44,0),"") -> 
A30: 26 | B30: ='Cash Book Mad'!A28 -> Other9 | C30: 0.00 | E30: =IFERROR(HLOOKUP(B30,receipt_entry,47,0),"") ->  | G30: =IFERROR(HLOOKUP(B30,payment_entry,44,0),"") -> 
A31: 27 | B31: ='Cash Book Mad'!A29 -> Other10 | C31: 0.00 | E31: =IFERROR(HLOOKUP(B31,receipt_entry,47,0),"") ->  | G31: =IFERROR(HLOOKUP(B31,payment_entry,44,0),"") -> 
A32: 28 | B32: ='Cash Book Mad'!A30 -> Other11 | C32: 0.00 | E32: =IFERROR(HLOOKUP(B32,receipt_entry,47,0),"") ->  | G32: =IFERROR(HLOOKUP(B32,payment_entry,44,0),"") -> 
A33: 29 | B33: ='Cash Book Mad'!A31 -> Other12 | C33: 0.00 | E33: =IFERROR(HLOOKUP(B33,receipt_entry,47,0),"") ->  | G33: =IFERROR(HLOOKUP(B33,payment_entry,44,0),"") -> 
A34: 30 | B34: ='Cash Book Mad'!A32 -> Other13 | C34: 0.00 | E34: =IFERROR(HLOOKUP(B34,receipt_entry,47,0),"") ->  | G34: =IFERROR(HLOOKUP(B34,payment_entry,44,0),"") -> 
A35: 31 | B35: ='Cash Book Mad'!A33 -> 0 | C35: 0.00 | E35: =IFERROR(HLOOKUP(B35,receipt_entry,47,0),"") ->  | G35: =IFERROR(HLOOKUP(B35,payment_entry,44,0),"") -> 
A36: 32 | B36: ='Cash Book Mad'!A34 -> 0 | C36: 0.00 | E36: =IFERROR(HLOOKUP(B36,receipt_entry,47,0),"") ->  | G36: =IFERROR(HLOOKUP(B36,payment_entry,44,0),"") -> 
A37: 33 | B37: ='Cash Book Mad'!A35 -> 0 | C37: 0.00 | E37: =IFERROR(HLOOKUP(B37,receipt_entry,47,0),"") ->  | G37: =IFERROR(HLOOKUP(B37,payment_entry,44,0),"") -> 
A38: 34 | B38: ='Cash Book Mad'!A36 -> 0 | C38: 0.00 | E38: =IFERROR(HLOOKUP(B38,receipt_entry,47,0),"") ->  | G38: =IFERROR(HLOOKUP(B38,payment_entry,44,0),"") -> 
A39: 35 | B39: ='Cash Book Mad'!A37 -> 0 | C39: 0.00 | E39: =IFERROR(HLOOKUP(B39,receipt_entry,47,0),"") ->  | G39: =IFERROR(HLOOKUP(B39,payment_entry,44,0),"") -> 
A40: Toatl | C40: =SUM(C5:C39) -> 152482.54 | D40: =SUM(D5:D39) -> 550.00 | E40: 207482.54 | F40: 5550.00 | G40: 50545.00 | H40: 0.00 | I40: =IFERROR(E40-G40,"") -> 156937.54 | J40: 5550.00
A41: Grand Total | C41: =C40+D40 -> 153032.54 | E41: =E40+F40 -> 213032.54 | G41: =G40+H40 -> 50545.00 | I41: =I40+J40 -> 162487.54

Sheet Entry Cr&Dr
A1: ='Cash Book Mad'!A1 -> Government Senior Secondary School, Rooppura | L1: Receipt वाले कोलम में जो राशि जिस मद में आई है वो मद सेलेक्ट करके विवरण लिखे तथा राशि का इन्द्राज करे | Payment वाले कोलम में जो राशि आपने खर्च की उसका मद सेलेक्ट करके विवरण लिखे तथा राशि का इन्द्राज करे |
A3: Receipt | G3: Payment
A4: दिनाक | B4: मद (जिसमे राशि आई है) | C4: राशि प्राप्त होने का अन्य विवरण | D4: राशि (जो आई है) | E4: राशि जमा होने का तरीका | G4: दिनाक | H4: मद (जिसमे से राशि खर्च हुई है) | I4: किसको दिया गया | J4: राशि (जो दी गई) | K4: राशि देने का तरीका
A5: 2020-07-01 | B5: CSG | C5: samsa dwara prapt | D5: 50000.00 | E5: Online | G5: 2020-07-01 | H5: Gas Subcidy, MDM, Cook-Cum Helper | I5: toshina mahila ko cheque dwara bhugtan | J5: 16944.00 | K5: By Cheque
A6: 2020-07-02 | B6: Vikas Kosh | C6: Raseed Number 50/15 Dated 02-07-20 | D6: 5000.00 | E6: Cash | G6: 2020-07-02 | H6: Gas Subcidy, MDM, Cook-Cum Helper | I6: sri banwari ko cheque dwara bhugtan | J6: 1965.00 | K6: By Cheque
A7: 2020-07-03 | G7: 2020-07-03 | H7: Gas Subcidy, MDM, Cook-Cum Helper | I7: ashok kumar fal sabji | J7: 12579.00 | K7: By Cheque | L7: Receipt प्रिंट एंड चेक करने के लिए यहाँ Click करे | | P7: Payment प्रिंट एंड चेक करने के लिए यहाँ Click करे |
A8: 2020-07-04 | G8: 2020-07-04 | H8: Gas Subcidy, MDM, Cook-Cum Helper | I8: jeewan ram jhala kirana | J8: 19057.00 | K8: By Cheque
A9: 2020-07-05 | G9: 2020-07-05
A10: 2020-07-06 | G10: 2020-07-06 | N10: क्या करू ????????
A11: 2020-07-07 | G11: 2020-07-07
A12: 2020-07-08 | G12: 2020-07-08
A13: 2020-07-09 | G13: 2020-07-09
A14: 2020-07-10 | G14: 2020-07-10
A15: 2020-07-11 | G15: 2020-07-11
A16: 2020-07-12 | G16: 2020-07-12
A17: 2020-07-13 | G17: 2020-07-13
A18: 2020-07-14 | G18: 2020-07-14
A19: 2020-07-15 | G19: 2020-07-15
A20: 2020-07-16 | G20: 2020-07-16
A21: 2020-07-17 | G21: 2020-07-17
A22: 2020-07-18 | G22: 2020-07-18
A23: 2020-07-19 | G23: 2020-07-19
A24: 2020-07-20 | G24: 2020-07-20
A25: 2020-07-21 | G25: 2020-07-21
A26: 2020-07-22 | G26: 2020-07-22
A27: 2020-07-23 | G27: 2020-07-23
A28: 2020-07-24 | G28: 2020-07-24
A29: 2020-07-25 | G29: 2020-07-25
A30: 2020-07-26 | G30: 2020-07-26
A31: 2020-07-27 | G31: 2020-07-27
A32: 2020-07-28 | G32: 2020-07-28
A33: 2020-07-29 | G33: 2020-07-29
A34: 2020-07-30 | G34: 2020-07-30
A35: 2020-07-31 | G35: 2020-07-31
A36: 2020-08-01 | G36: 2020-08-01
A37: 2020-08-02 | G37: 2020-08-02
A38: 2020-08-03 | G38: 2020-08-03
A39: 2020-08-04 | G39: 2020-08-04
A40: 2020-08-05 | G40: 2020-08-05
A41: 2020-08-06 | G41: 2020-08-06
A42: 2020-08-07 | G42: 2020-08-07
A43: 2020-08-08 | G43: 2020-08-08
A44: 2020-08-09 | G44: 2020-08-09
A45: 2020-08-10 | G45: 2020-08-10

Sheet Receipt
A1: Receipt
A2: दिनाक | B2: मद जिसमे राशि प्राप्त हुई | C2: किससे प्राप्त हुआ | D2: CSG | E2: Vikas Kosh | F2: FVC | G2: Internet | H2: Gas Subcidy, MDM, Cook-Cum Helper | I2: Scholarship | J2: Scout Guide | K2: Cycle and Transport Voucher | L2: Science | M2: SMC Training | N2: Bhawan Nirman | O2: School Repairing | P2: Lab | Q2: Liberary | R2: Electricty/Water Bill | S2: Game related | T2: Other1 | U2: Other2 | V2: Bank Interest | W2: योग | X2: Cash | Y2: बैंक
A3: ='Opening Balance'!I2 -> 2020-07-01 | B3: Opening Balance | D3: =VLOOKUP(D2,opening_bal,2,0) -> 0.00 | E3: 10226.40 | F3: 500.00 | G3: 3252.00 | H3: 60663.42 | I3: 3600.00 | J3: 7150.00 | K3: 20740.00 | L3: 10000.00 | M3: 0.00 | N3: 0.00 | O3: 0.00 | P3: 0.00 | Q3: 0.00 | R3: 0.00 | S3: 0.00 | T3: 3526.00 | U3: 0.00 | V3: 32824.72 | W3: =IF(SUM(D3:V3,X3)=0,"",SUM(D3:V3,X3)) -> 153032.54 | X3: ='Opening Balance'!D5 -> 550.00 | Y3: =W3-X3 -> 152482.54 | AA3: इस शीट में केवल cash वाले कोलम में एंट्री करे जो राशि कैश में आई है उसका इन्द्राज cash वाले कोलम में करे |बाकी अन्य किसी भी कोलम में एंट्री करने की आवश्यकता नही है |आसमानी कलर वाले कोलम में मद समान होने चाहिए |
A4: =IF('Entry Cr&Dr'!A5="","",'Entry Cr&Dr'!A5) -> 2020-07-01 | B4: =IF('Entry Cr&Dr'!B5="","",'Entry Cr&Dr'!B5) -> CSG | C4: =IF('Entry Cr&Dr'!C5="","",'Entry Cr&Dr'!C5) -> samsa dwara prapt | D4: =IF(D2=$B$4,'Entry Cr&Dr'!$D$5,"") -> 50000.00 | E4: =IF(E2=$B$4,'Entry Cr&Dr'!$D$5,"") ->  | F4: =IF(F2=$B$4,'Entry Cr&Dr'!$D$5,"") ->  | G4: =IF(G2=$B$4,'Entry Cr&Dr'!$D$5,"") ->  | H4: =IF(H2=$B$4,'Entry Cr&Dr'!$D$5,"") ->  | I4: =IF(I2=$B$4,'Entry Cr&Dr'!$D$5,"") ->  | J4: =IF(J2=$B$4,'Entry Cr&Dr'!$D$5,"") ->  | K4: =IF(K2=$B$4,'Entry Cr&Dr'!$D$5,"") ->  | L4: =IF(L2=$B$4,'Entry Cr&Dr'!$D$5,"") ->  | M4: =IF(M2=$B$4,'Entry Cr&Dr'!$D$5,"") ->  | N4: =IF(N2=$B$4,'Entry Cr&Dr'!$D$5,"") ->  | O4: =IF(O2=$B$4,'Entry Cr&Dr'!$D$5,"") ->  | P4: =IF(P2=$B$4,'Entry Cr&Dr'!$D$5,"") ->  | Q4: =IF(Q2=$B$4,'Entry Cr&Dr'!$D$5,"") ->  | R4: =IF(R2=$B$4,'Entry Cr&Dr'!$D$5,"") ->  | S4: =IF(S2=$B$4,'Entry Cr&Dr'!$D$5,"") ->  | T4: =IF(T2=$B$4,'Entry Cr&Dr'!$D$5,"") ->  | U4: =IF(U2=$B$4,'Entry Cr&Dr'!$D$5,"") ->  | V4: =IF(V2=$B$4,'Entry Cr&Dr'!$D$5,"") ->  | W4: =IF(SUM(D4:V4)=0,"",SUM(D4:V4)) -> 50000.00 | Y4: =IFERROR(IF(W4-X4=0,"",W4-X4),"") -> 50000.00
A5: =IF('Entry Cr&Dr'!A6="","",'Entry Cr&Dr'!A6) -> 2020-07-02 | B5: =IF('Entry Cr&Dr'!B6="","",'Entry Cr&Dr'!B6) -> Vikas Kosh | C5: =IF('Entry Cr&Dr'!C6="","",'Entry Cr&Dr'!C6) -> Raseed Number 50/15 Dated 02-07-20 | D5: =IF(D2=$B$5,'Entry Cr&Dr'!$D$6,"") ->  | E5: =IF(E2=$B$5,'Entry Cr&Dr'!$D$6,"") -> 5000.00 | F5: =IF(F2=$B$5,'Entry Cr&Dr'!$D$6,"") ->  | G5: =IF(G2=$B$5,'Entry Cr&Dr'!$D$6,"") ->  | H5: =IF(H2=$B$5,'Entry Cr&Dr'!$D$6,"") ->  | I5: =IF(I2=$B$5,'Entry Cr&Dr'!$D$6,"") ->  | J5: =IF(J2=$B$5,'Entry Cr&Dr'!$D$6,"") ->  | K5: =IF(K2=$B$5,'Entry Cr&Dr'!$D$6,"") ->  | L5: =IF(L2=$B$5,'Entry Cr&Dr'!$D$6,"") ->  | M5: =IF(M2=$B$5,'Entry Cr&Dr'!$D$6,"") ->  | N5: =IF(N2=$B$5,'Entry Cr&Dr'!$D$6,"") ->  | O5: =IF(O2=$B$5,'Entry Cr&Dr'!$D$6,"") ->  | P5: =IF(P2=$B$5,'Entry Cr&Dr'!$D$6,"") ->  | Q5: =IF(Q2=$B$5,'Entry Cr&Dr'!$D$6,"") ->  | R5: =IF(R2=$B$5,'Entry Cr&Dr'!$D$6,"") ->  | S5: =IF(S2=$B$5,'Entry Cr&Dr'!$D$6,"") ->  | T5: =IF(T2=$B$5,'Entry Cr&Dr'!$D$6,"") ->  | U5: =IF(U2=$B$5,'Entry Cr&Dr'!$D$6,"") ->  | V5: =IF(V2=$B$5,'Entry Cr&Dr'!$D$6,"") ->  | W5: =IF(SUM(D5:V5)=0,"",SUM(D5:V5)) -> 5000.00 | X5: 5000.00 | Y5: =IFERROR(IF(W5-X5=0,"",W5-X5),"") -> 
A6: =IF('Entry Cr&Dr'!A7="","",'Entry Cr&Dr'!A7) -> 2020-07-03 | B6: =IF('Entry Cr&Dr'!B7="","",'Entry Cr&Dr'!B7) ->  | C6: =IF('Entry Cr&Dr'!C7="","",'Entry Cr&Dr'!C7) ->  | D6: =IF(D2=$B$6,'Entry Cr&Dr'!$D$7,"") ->  | E6: =IF(E2=$B$6,'Entry Cr&Dr'!$D$7,"") ->  | F6: =IF(F2=$B$6,'Entry Cr&Dr'!$D$7,"") ->  | G6: =IF(G2=$B$6,'Entry Cr&Dr'!$D$7,"") ->  | H6: =IF(H2=$B$6,'Entry Cr&Dr'!$D$7,"") ->  | I6: =IF(I2=$B$6,'Entry Cr&Dr'!$D$7,"") ->  | J6: =IF(J2=$B$6,'Entry Cr&Dr'!$D$7,"") ->  | K6: =IF(K2=$B$6,'Entry Cr&Dr'!$D$7,"") ->  | L6: =IF(L2=$B$6,'Entry Cr&Dr'!$D$7,"") ->  | M6: =IF(M2=$B$6,'Entry Cr&Dr'!$D$7,"") ->  | N6: =IF(N2=$B$6,'Entry Cr&Dr'!$D$7,"") ->  | O6: =IF(O2=$B$6,'Entry Cr&Dr'!$D$7,"") ->  | P6: =IF(P2=$B$6,'Entry Cr&Dr'!$D$7,"") ->  | Q6: =IF(Q2=$B$6,'Entry Cr&Dr'!$D$7,"") ->  | R6: =IF(R2=$B$6,'Entry Cr&Dr'!$D$7,"") ->  | S6: =IF(S2=$B$6,'Entry Cr&Dr'!$D$7,"") ->  | T6: =IF(T2=$B$6,'Entry Cr&Dr'!$D$7,"") ->  | U6: =IF(U2=$B$6,'Entry Cr&Dr'!$D$7,"") ->  | V6: =IF(V2=$B$6,'Entry Cr&Dr'!$D$7,"") -> 
A7: =IF('Entry Cr&Dr'!A8="","",'Entry Cr&Dr'!A8) -> 2020-07-04 | B7: =IF('Entry Cr&Dr'!B8="","",'Entry Cr&Dr'!B8) ->  | C7: =IF('Entry Cr&Dr'!C8="","",'Entry Cr&Dr'!C8) ->  | D7: =IF(D2=$B$7,'Entry Cr&Dr'!$D$8,"") ->  | E7: =IF(E2=$B$7,'Entry Cr&Dr'!$D$8,"") ->  | F7: =IF(F2=$B$7,'Entry Cr&Dr'!$D$8,"") ->  | G7: =IF(G2=$B$7,'Entry Cr&Dr'!$D$8,"") ->  | H7: =IF(H2=$B$7,'Entry Cr&Dr'!$D$8,"") ->  | I7: =IF(I2=$B$7,'Entry Cr&Dr'!$D$8,"") ->  | J7: =IF(J2=$B$7,'Entry Cr&Dr'!$D$8,"") ->  | K7: =IF(K2=$B$7,'Entry Cr&Dr'!$D$8,"") ->  | L7: =IF(L2=$B$7,'Entry Cr&Dr'!$D$8,"") ->  | M7: =IF(M2=$B$7,'Entry Cr&Dr'!$D$8,"") ->  | N7: =IF(N2=$B$7,'Entry Cr&Dr'!$D$8,"") ->  | O7: =IF(O2=$B$7,'Entry Cr&Dr'!$D$8,"") ->  | P7: =IF(P2=$B$7,'Entry Cr&Dr'!$D$8,"") ->  | Q7: =IF(Q2=$B$7,'Entry Cr&Dr'!$D$8,"") ->  | R7: =IF(R2=$B$7,'Entry Cr&Dr'!$D$8,"") ->  | S7: =IF(S2=$B$7,'Entry Cr&Dr'!$D$8,"") ->  | T7: =IF(T2=$B$7,'Entry Cr&Dr'!$D$8,"") ->  | U7: =IF(U2=$B$7,'Entry Cr&Dr'!$D$8,"") ->  | V7: =IF(V2=$B$7,'Entry Cr&Dr'!$D$8,"") -> 
A8: =IF('Entry Cr&Dr'!A9="","",'Entry Cr&Dr'!A9) -> 2020-07-05 | B8: =IF('Entry Cr&Dr'!B9="","",'Entry Cr&Dr'!B9) ->  | C8: =IF('Entry Cr&Dr'!C9="","",'Entry Cr&Dr'!C9) ->  | D8: =IF(D2=$B$8,'Entry Cr&Dr'!$D$9,"") ->  | E8: =IF(E2=$B$8,'Entry Cr&Dr'!$D$9,"") ->  | F8: =IF(F2=$B$8,'Entry Cr&Dr'!$D$9,"") ->  | G8: =IF(G2=$B$8,'Entry Cr&Dr'!$D$9,"") ->  | H8: =IF(H2=$B$8,'Entry Cr&Dr'!$D$9,"") ->  | I8: =IF(I2=$B$8,'Entry Cr&Dr'!$D$9,"") ->  | J8: =IF(J2=$B$8,'Entry Cr&Dr'!$D$9,"") ->  | K8: =IF(K2=$B$8,'Entry Cr&Dr'!$D$9,"") ->  | L8: =IF(L2=$B$8,'Entry Cr&Dr'!$D$9,"") ->  | M8: =IF(M2=$B$8,'Entry Cr&Dr'!$D$9,"") ->  | N8: =IF(N2=$B$8,'Entry Cr&Dr'!$D$9,"") ->  | O8: =IF(O2=$B$8,'Entry Cr&Dr'!$D$9,"") ->  | P8: =IF(P2=$B$8,'Entry Cr&Dr'!$D$9,"") ->  | Q8: =IF(Q2=$B$8,'Entry Cr&Dr'!$D$9,"") ->  | R8: =IF(R2=$B$8,'Entry Cr&Dr'!$D$9,"") ->  | S8: =IF(S2=$B$8,'Entry Cr&Dr'!$D$9,"") ->  | T8: =IF(T2=$B$8,'Entry Cr&Dr'!$D$9,"") ->  | U8: =IF(U2=$B$8,'Entry Cr&Dr'!$D$9,"") ->  | V8: =IF(V2=$B$8,'Entry Cr&Dr'!$D$9,"") ->  | AA8: Click Here to check ENTRY
A9: =IF('Entry Cr&Dr'!A10="","",'Entry Cr&Dr'!A10) -> 2020-07-06 | B9: =IF('Entry Cr&Dr'!B10="","",'Entry Cr&Dr'!B10) ->  | C9: =IF('Entry Cr&Dr'!C10="","",'Entry Cr&Dr'!C10) ->  | D9: =IF(D2=$B$9,'Entry Cr&Dr'!$D$10,"") ->  | E9: =IF(E2=$B$9,'Entry Cr&Dr'!$D$10,"") ->  | F9: =IF(F2=$B$9,'Entry Cr&Dr'!$D$10,"") ->  | G9: =IF(G2=$B$9,'Entry Cr&Dr'!$D$10,"") ->  | H9: =IF(H2=$B$9,'Entry Cr&Dr'!$D$10,"") ->  | I9: =IF(I2=$B$9,'Entry Cr&Dr'!$D$10,"") ->  | J9: =IF(J2=$B$9,'Entry Cr&Dr'!$D$10,"") ->  | K9: =IF(K2=$B$9,'Entry Cr&Dr'!$D$10,"") ->  | L9: =IF(L2=$B$9,'Entry Cr&Dr'!$D$10,"") ->  | M9: =IF(M2=$B$9,'Entry Cr&Dr'!$D$10,"") ->  | N9: =IF(N2=$B$9,'Entry Cr&Dr'!$D$10,"") ->  | O9: =IF(O2=$B$9,'Entry Cr&Dr'!$D$10,"") ->  | P9: =IF(P2=$B$9,'Entry Cr&Dr'!$D$10,"") ->  | Q9: =IF(Q2=$B$9,'Entry Cr&Dr'!$D$10,"") ->  | R9: =IF(R2=$B$9,'Entry Cr&Dr'!$D$10,"") ->  | S9: =IF(S2=$B$9,'Entry Cr&Dr'!$D$10,"") ->  | T9: =IF(T2=$B$9,'Entry Cr&Dr'!$D$10,"") ->  | U9: =IF(U2=$B$9,'Entry Cr&Dr'!$D$10,"") ->  | V9: =IF(V2=$B$9,'Entry Cr&Dr'!$D$10,"") -> 
A10: =IF('Entry Cr&Dr'!A11="","",'Entry Cr&Dr'!A11) -> 2020-07-07 | B10: =IF('Entry Cr&Dr'!B11="","",'Entry Cr&Dr'!B11) ->  | C10: =IF('Entry Cr&Dr'!C11="","",'Entry Cr&Dr'!C11) ->  | D10: =IF(D2=$B$10,'Entry Cr&Dr'!$D$11,"") ->  | E10: =IF(E2=$B$10,'Entry Cr&Dr'!$D$11,"") ->  | F10: =IF(F2=$B$10,'Entry Cr&Dr'!$D$11,"") ->  | G10: =IF(G2=$B$10,'Entry Cr&Dr'!$D$11,"") ->  | H10: =IF(H2=$B$10,'Entry Cr&Dr'!$D$11,"") ->  | I10: =IF(I2=$B$10,'Entry Cr&Dr'!$D$11,"") ->  | J10: =IF(J2=$B$10,'Entry Cr&Dr'!$D$11,"") ->  | K10: =IF(K2=$B$10,'Entry Cr&Dr'!$D$11,"") ->  | L10: =IF(L2=$B$10,'Entry Cr&Dr'!$D$11,"") ->  | M10: =IF(M2=$B$10,'Entry Cr&Dr'!$D$11,"") ->  | N10: =IF(N2=$B$10,'Entry Cr&Dr'!$D$11,"") ->  | O10: =IF(O2=$B$10,'Entry Cr&Dr'!$D$11,"") ->  | P10: =IF(P2=$B$10,'Entry Cr&Dr'!$D$11,"") ->  | Q10: =IF(Q2=$B$10,'Entry Cr&Dr'!$D$11,"") ->  | R10: =IF(R2=$B$10,'Entry Cr&Dr'!$D$11,"") ->  | S10: =IF(S2=$B$10,'Entry Cr&Dr'!$D$11,"") ->  | T10: =IF(T2=$B$10,'Entry Cr&Dr'!$D$11,"") ->  | U10: =IF(U2=$B$10,'Entry Cr&Dr'!$D$11,"") ->  | V10: =IF(V2=$B$10,'Entry Cr&Dr'!$D$11,"") -> 
A11: =IF('Entry Cr&Dr'!A12="","",'Entry Cr&Dr'!A12) -> 2020-07-08 | B11: =IF('Entry Cr&Dr'!B12="","",'Entry Cr&Dr'!B12) ->  | C11: =IF('Entry Cr&Dr'!C12="","",'Entry Cr&Dr'!C12) ->  | D11: =IF(D2=$B$11,'Entry Cr&Dr'!$D$12,"") ->  | E11: =IF(E2=$B$11,'Entry Cr&Dr'!$D$12,"") ->  | F11: =IF(F2=$B$11,'Entry Cr&Dr'!$D$12,"") ->  | G11: =IF(G2=$B$11,'Entry Cr&Dr'!$D$12,"") ->  | H11: =IF(H2=$B$11,'Entry Cr&Dr'!$D$12,"") ->  | I11: =IF(I2=$B$11,'Entry Cr&Dr'!$D$12,"") ->  | J11: =IF(J2=$B$11,'Entry Cr&Dr'!$D$12,"") ->  | K11: =IF(K2=$B$11,'Entry Cr&Dr'!$D$12,"") ->  | L11: =IF(L2=$B$11,'Entry Cr&Dr'!$D$12,"") ->  | M11: =IF(M2=$B$11,'Entry Cr&Dr'!$D$12,"") ->  | N11: =IF(N2=$B$11,'Entry Cr&Dr'!$D$12,"") ->  | O11: =IF(O2=$B$11,'Entry Cr&Dr'!$D$12,"") ->  | P11: =IF(P2=$B$11,'Entry Cr&Dr'!$D$12,"") ->  | Q11: =IF(Q2=$B$11,'Entry Cr&Dr'!$D$12,"") ->  | R11: =IF(R2=$B$11,'Entry Cr&Dr'!$D$12,"") ->  | S11: =IF(S2=$B$11,'Entry Cr&Dr'!$D$12,"") ->  | T11: =IF(T2=$B$11,'Entry Cr&Dr'!$D$12,"") ->  | U11: =IF(U2=$B$11,'Entry Cr&Dr'!$D$12,"") ->  | V11: =IF(V2=$B$11,'Entry Cr&Dr'!$D$12,"") -> 
A12: =IF('Entry Cr&Dr'!A13="","",'Entry Cr&Dr'!A13) -> 2020-07-09 | B12: =IF('Entry Cr&Dr'!B13="","",'Entry Cr&Dr'!B13) ->  | C12: =IF('Entry Cr&Dr'!C13="","",'Entry Cr&Dr'!C13) ->  | D12: =IF(D2=$B$12,'Entry Cr&Dr'!$D$13,"") ->  | E12: =IF(E2=$B$12,'Entry Cr&Dr'!$D$13,"") ->  | F12: =IF(F2=$B$12,'Entry Cr&Dr'!$D$13,"") ->  | G12: =IF(G2=$B$12,'Entry Cr&Dr'!$D$13,"") ->  | H12: =IF(H2=$B$12,'Entry Cr&Dr'!$D$13,"") ->  | I12: =IF(I2=$B$12,'Entry Cr&Dr'!$D$13,"") ->  | J12: =IF(J2=$B$12,'Entry Cr&Dr'!$D$13,"") ->  | K12: =IF(K2=$B$12,'Entry Cr&Dr'!$D$13,"") ->  | L12: =IF(L2=$B$12,'Entry Cr&Dr'!$D$13,"") ->  | M12: =IF(M2=$B$12,'Entry Cr&Dr'!$D$13,"") ->  | N12: =IF(N2=$B$12,'Entry Cr&Dr'!$D$13,"") ->  | O12: =IF(O2=$B$12,'Entry Cr&Dr'!$D$13,"") ->  | P12: =IF(P2=$B$12,'Entry Cr&Dr'!$D$13,"") ->  | Q12: =IF(Q2=$B$12,'Entry Cr&Dr'!$D$13,"") ->  | R12: =IF(R2=$B$12,'Entry Cr&Dr'!$D$13,"") ->  | S12: =IF(S2=$B$12,'Entry Cr&Dr'!$D$13,"") ->  | T12: =IF(T2=$B$12,'Entry Cr&Dr'!$D$13,"") ->  | U12: =IF(U2=$B$12,'Entry Cr&Dr'!$D$13,"") ->  | V12: =IF(V2=$B$12,'Entry Cr&Dr'!$D$13,"") -> 
A13: =IF('Entry Cr&Dr'!A14="","",'Entry Cr&Dr'!A14) -> 2020-07-10 | B13: =IF('Entry Cr&Dr'!B14="","",'Entry Cr&Dr'!B14) ->  | C13: =IF('Entry Cr&Dr'!C14="","",'Entry Cr&Dr'!C14) ->  | D13: =IF(D2=$B$13,'Entry Cr&Dr'!$D$14,"") ->  | E13: =IF(E2=$B$13,'Entry Cr&Dr'!$D$14,"") ->  | F13: =IF(F2=$B$13,'Entry Cr&Dr'!$D$14,"") ->  | G13: =IF(G2=$B$13,'Entry Cr&Dr'!$D$14,"") ->  | H13: =IF(H2=$B$13,'Entry Cr&Dr'!$D$14,"") ->  | I13: =IF(I2=$B$13,'Entry Cr&Dr'!$D$14,"") ->  | J13: =IF(J2=$B$13,'Entry Cr&Dr'!$D$14,"") ->  | K13: =IF(K2=$B$13,'Entry Cr&Dr'!$D$14,"") ->  | L13: =IF(L2=$B$13,'Entry Cr&Dr'!$D$14,"") ->  | M13: =IF(M2=$B$13,'Entry Cr&Dr'!$D$14,"") ->  | N13: =IF(N2=$B$13,'Entry Cr&Dr'!$D$14,"") ->  | O13: =IF(O2=$B$13,'Entry Cr&Dr'!$D$14,"") ->  | P13: =IF(P2=$B$13,'Entry Cr&Dr'!$D$14,"") ->  | Q13: =IF(Q2=$B$13,'Entry Cr&Dr'!$D$14,"") ->  | R13: =IF(R2=$B$13,'Entry Cr&Dr'!$D$14,"") ->  | S13: =IF(S2=$B$13,'Entry Cr&Dr'!$D$14,"") ->  | T13: =IF(T2=$B$13,'Entry Cr&Dr'!$D$14,"") ->  | U13: =IF(U2=$B$13,'Entry Cr&Dr'!$D$14,"") ->  | V13: =IF(V2=$B$13,'Entry Cr&Dr'!$D$14,"") -> 
A14: =IF('Entry Cr&Dr'!A15="","",'Entry Cr&Dr'!A15) -> 2020-07-11 | B14: =IF('Entry Cr&Dr'!B15="","",'Entry Cr&Dr'!B15) ->  | C14: =IF('Entry Cr&Dr'!C15="","",'Entry Cr&Dr'!C15) ->  | D14: =IF(D2=$B$14,'Entry Cr&Dr'!$D$15,"") ->  | E14: =IF(E2=$B$14,'Entry Cr&Dr'!$D$15,"") ->  | F14: =IF(F2=$B$14,'Entry Cr&Dr'!$D$15,"") ->  | G14: =IF(G2=$B$14,'Entry Cr&Dr'!$D$15,"") ->  | H14: =IF(H2=$B$14,'Entry Cr&Dr'!$D$15,"") ->  | I14: =IF(I2=$B$14,'Entry Cr&Dr'!$D$15,"") ->  | J14: =IF(J2=$B$14,'Entry Cr&Dr'!$D$15,"") ->  | K14: =IF(K2=$B$14,'Entry Cr&Dr'!$D$15,"") ->  | L14: =IF(L2=$B$14,'Entry Cr&Dr'!$D$15,"") ->  | M14: =IF(M2=$B$14,'Entry Cr&Dr'!$D$15,"") ->  | N14: =IF(N2=$B$14,'Entry Cr&Dr'!$D$15,"") ->  | O14: =IF(O2=$B$14,'Entry Cr&Dr'!$D$15,"") ->  | P14: =IF(P2=$B$14,'Entry Cr&Dr'!$D$15,"") ->  | Q14: =IF(Q2=$B$14,'Entry Cr&Dr'!$D$15,"") ->  | R14: =IF(R2=$B$14,'Entry Cr&Dr'!$D$15,"") ->  | S14: =IF(S2=$B$14,'Entry Cr&Dr'!$D$15,"") ->  | T14: =IF(T2=$B$14,'Entry Cr&Dr'!$D$15,"") ->  | U14: =IF(U2=$B$14,'Entry Cr&Dr'!$D$15,"") ->  | V14: =IF(V2=$B$14,'Entry Cr&Dr'!$D$15,"") -> 
A15: =IF('Entry Cr&Dr'!A16="","",'Entry Cr&Dr'!A16) -> 2020-07-12 | B15: =IF('Entry Cr&Dr'!B16="","",'Entry Cr&Dr'!B16) ->  | C15: =IF('Entry Cr&Dr'!C16="","",'Entry Cr&Dr'!C16) ->  | D15: =IF(D2=$B$15,'Entry Cr&Dr'!$D$16,"") ->  | E15: =IF(E2=$B$15,'Entry Cr&Dr'!$D$16,"") ->  | F15: =IF(F2=$B$15,'Entry Cr&Dr'!$D$16,"") ->  | G15: =IF(G2=$B$15,'Entry Cr&Dr'!$D$16,"") ->  | H15: =IF(H2=$B$15,'Entry Cr&Dr'!$D$16,"") ->  | I15: =IF(I2=$B$15,'Entry Cr&Dr'!$D$16,"") ->  | J15: =IF(J2=$B$15,'Entry Cr&Dr'!$D$16,"") ->  | K15: =IF(K2=$B$15,'Entry Cr&Dr'!$D$16,"") ->  | L15: =IF(L2=$B$15,'Entry Cr&Dr'!$D$16,"") ->  | M15: =IF(M2=$B$15,'Entry Cr&Dr'!$D$16,"") ->  | N15: =IF(N2=$B$15,'Entry Cr&Dr'!$D$16,"") ->  | O15: =IF(O2=$B$15,'Entry Cr&Dr'!$D$16,"") ->  | P15: =IF(P2=$B$15,'Entry Cr&Dr'!$D$16,"") ->  | Q15: =IF(Q2=$B$15,'Entry Cr&Dr'!$D$16,"") ->  | R15: =IF(R2=$B$15,'Entry Cr&Dr'!$D$16,"") ->  | S15: =IF(S2=$B$15,'Entry Cr&Dr'!$D$16,"") ->  | T15: =IF(T2=$B$15,'Entry Cr&Dr'!$D$16,"") ->  | U15: =IF(U2=$B$15,'Entry Cr&Dr'!$D$16,"") ->  | V15: =IF(V2=$B$15,'Entry Cr&Dr'!$D$16,"") -> 
A16: =IF('Entry Cr&Dr'!A17="","",'Entry Cr&Dr'!A17) -> 2020-07-13 | B16: =IF('Entry Cr&Dr'!B17="","",'Entry Cr&Dr'!B17) ->  | C16: =IF('Entry Cr&Dr'!C17="","",'Entry Cr&Dr'!C17) ->  | D16: =IF(D2=$B$16,'Entry Cr&Dr'!$D$17,"") ->  | E16: =IF(E2=$B$16,'Entry Cr&Dr'!$D$17,"") ->  | F16: =IF(F2=$B$16,'Entry Cr&Dr'!$D$17,"") ->  | G16: =IF(G2=$B$16,'Entry Cr&Dr'!$D$17,"") ->  | H16: =IF(H2=$B$16,'Entry Cr&Dr'!$D$17,"") ->  | I16: =IF(I2=$B$16,'Entry Cr&Dr'!$D$17,"") ->  | J16: =IF(J2=$B$16,'Entry Cr&Dr'!$D$17,"") ->  | K16: =IF(K2=$B$16,'Entry Cr&Dr'!$D$17,"") ->  | L16: =IF(L2=$B$16,'Entry Cr&Dr'!$D$17,"") ->  | M16: =IF(M2=$B$16,'Entry Cr&Dr'!$D$17,"") ->  | N16: =IF(N2=$B$16,'Entry Cr&Dr'!$D$17,"") ->  | O16: =IF(O2=$B$16,'Entry Cr&Dr'!$D$17,"") ->  | P16: =IF(P2=$B$16,'Entry Cr&Dr'!$D$17,"") ->  | Q16: =IF(Q2=$B$16,'Entry Cr&Dr'!$D$17,"") ->  | R16: =IF(R2=$B$16,'Entry Cr&Dr'!$D$17,"") ->  | S16: =IF(S2=$B$16,'Entry Cr&Dr'!$D$17,"") ->  | T16: =IF(T2=$B$16,'Entry Cr&Dr'!$D$17,"") ->  | U16: =IF(U2=$B$16,'Entry Cr&Dr'!$D$17,"") ->  | V16: =IF(V2=$B$16,'Entry Cr&Dr'!$D$17,"") -> 
A17: =IF('Entry Cr&Dr'!A18="","",'Entry Cr&Dr'!A18) -> 2020-07-14 | B17: =IF('Entry Cr&Dr'!B18="","",'Entry Cr&Dr'!B18) ->  | C17: =IF('Entry Cr&Dr'!C18="","",'Entry Cr&Dr'!C18) ->  | D17: =IF(D2=$B$17,'Entry Cr&Dr'!$D$18,"") ->  | E17: =IF(E2=$B$17,'Entry Cr&Dr'!$D$18,"") ->  | F17: =IF(F2=$B$17,'Entry Cr&Dr'!$D$18,"") ->  | G17: =IF(G2=$B$17,'Entry Cr&Dr'!$D$18,"") ->  | H17: =IF(H2=$B$17,'Entry Cr&Dr'!$D$18,"") ->  | I17: =IF(I2=$B$17,'Entry Cr&Dr'!$D$18,"") ->  | J17: =IF(J2=$B$17,'Entry Cr&Dr'!$D$18,"") ->  | K17: =IF(K2=$B$17,'Entry Cr&Dr'!$D$18,"") ->  | L17: =IF(L2=$B$17,'Entry Cr&Dr'!$D$18,"") ->  | M17: =IF(M2=$B$17,'Entry Cr&Dr'!$D$18,"") ->  | N17: =IF(N2=$B$17,'Entry Cr&Dr'!$D$18,"") ->  | O17: =IF(O2=$B$17,'Entry Cr&Dr'!$D$18,"") ->  | P17: =IF(P2=$B$17,'Entry Cr&Dr'!$D$18,"") ->  | Q17: =IF(Q2=$B$17,'Entry Cr&Dr'!$D$18,"") ->  | R17: =IF(R2=$B$17,'Entry Cr&Dr'!$D$18,"") ->  | S17: =IF(S2=$B$17,'Entry Cr&Dr'!$D$18,"") ->  | T17: =IF(T2=$B$17,'Entry Cr&Dr'!$D$18,"") ->  | U17: =IF(U2=$B$17,'Entry Cr&Dr'!$D$18,"") ->  | V17: =IF(V2=$B$17,'Entry Cr&Dr'!$D$18,"") -> 
A18: =IF('Entry Cr&Dr'!A19="","",'Entry Cr&Dr'!A19) -> 2020-07-15 | B18: =IF('Entry Cr&Dr'!B19="","",'Entry Cr&Dr'!B19) ->  | C18: =IF('Entry Cr&Dr'!C19="","",'Entry Cr&Dr'!C19) ->  | D18: =IF(D2=$B$18,'Entry Cr&Dr'!$D$19,"") ->  | E18: =IF(E2=$B$18,'Entry Cr&Dr'!$D$19,"") ->  | F18: =IF(F2=$B$18,'Entry Cr&Dr'!$D$19,"") ->  | G18: =IF(G2=$B$18,'Entry Cr&Dr'!$D$19,"") ->  | H18: =IF(H2=$B$18,'Entry Cr&Dr'!$D$19,"") ->  | I18: =IF(I2=$B$18,'Entry Cr&Dr'!$D$19,"") ->  | J18: =IF(J2=$B$18,'Entry Cr&Dr'!$D$19,"") ->  | K18: =IF(K2=$B$18,'Entry Cr&Dr'!$D$19,"") ->  | L18: =IF(L2=$B$18,'Entry Cr&Dr'!$D$19,"") ->  | M18: =IF(M2=$B$18,'Entry Cr&Dr'!$D$19,"") ->  | N18: =IF(N2=$B$18,'Entry Cr&Dr'!$D$19,"") ->  | O18: =IF(O2=$B$18,'Entry Cr&Dr'!$D$19,"") ->  | P18: =IF(P2=$B$18,'Entry Cr&Dr'!$D$19,"") ->  | Q18: =IF(Q2=$B$18,'Entry Cr&Dr'!$D$19,"") ->  | R18: =IF(R2=$B$18,'Entry Cr&Dr'!$D$19,"") ->  | S18: =IF(S2=$B$18,'Entry Cr&Dr'!$D$19,"") ->  | T18: =IF(T2=$B$18,'Entry Cr&Dr'!$D$19,"") ->  | U18: =IF(U2=$B$18,'Entry Cr&Dr'!$D$19,"") ->  | V18: =IF(V2=$B$18,'Entry Cr&Dr'!$D$19,"") -> 
A19: =IF('Entry Cr&Dr'!A20="","",'Entry Cr&Dr'!A20) -> 2020-07-16 | B19: =IF('Entry Cr&Dr'!B20="","",'Entry Cr&Dr'!B20) ->  | C19: =IF('Entry Cr&Dr'!C20="","",'Entry Cr&Dr'!C20) ->  | D19: =IF(D2=$B$19,'Entry Cr&Dr'!$D$20,"") ->  | E19: =IF(E2=$B$19,'Entry Cr&Dr'!$D$20,"") ->  | F19: =IF(F2=$B$19,'Entry Cr&Dr'!$D$20,"") ->  | G19: =IF(G2=$B$19,'Entry Cr&Dr'!$D$20,"") ->  | H19: =IF(H2=$B$19,'Entry Cr&Dr'!$D$20,"") ->  | I19: =IF(I2=$B$19,'Entry Cr&Dr'!$D$20,"") ->  | J19: =IF(J2=$B$19,'Entry Cr&Dr'!$D$20,"") ->  | K19: =IF(K2=$B$19,'Entry Cr&Dr'!$D$20,"") ->  | L19: =IF(L2=$B$19,'Entry Cr&Dr'!$D$20,"") ->  | M19: =IF(M2=$B$19,'Entry Cr&Dr'!$D$20,"") ->  | N19: =IF(N2=$B$19,'Entry Cr&Dr'!$D$20,"") ->  | O19: =IF(O2=$B$19,'Entry Cr&Dr'!$D$20,"") ->  | P19: =IF(P2=$B$19,'Entry Cr&Dr'!$D$20,"") ->  | Q19: =IF(Q2=$B$19,'Entry Cr&Dr'!$D$20,"") ->  | R19: =IF(R2=$B$19,'Entry Cr&Dr'!$D$20,"") ->  | S19: =IF(S2=$B$19,'Entry Cr&Dr'!$D$20,"") ->  | T19: =IF(T2=$B$19,'Entry Cr&Dr'!$D$20,"") ->  | U19: =IF(U2=$B$19,'Entry Cr&Dr'!$D$20,"") ->  | V19: =IF(V2=$B$19,'Entry Cr&Dr'!$D$20,"") -> 
A20: =IF('Entry Cr&Dr'!A21="","",'Entry Cr&Dr'!A21) -> 2020-07-17 | B20: =IF('Entry Cr&Dr'!B21="","",'Entry Cr&Dr'!B21) ->  | C20: =IF('Entry Cr&Dr'!C21="","",'Entry Cr&Dr'!C21) ->  | D20: =IF(D2=$B$20,'Entry Cr&Dr'!$D$21,"") ->  | E20: =IF(E2=$B$20,'Entry Cr&Dr'!$D$21,"") ->  | F20: =IF(F2=$B$20,'Entry Cr&Dr'!$D$21,"") ->  | G20: =IF(G2=$B$20,'Entry Cr&Dr'!$D$21,"") ->  | H20: =IF(H2=$B$20,'Entry Cr&Dr'!$D$21,"") ->  | I20: =IF(I2=$B$20,'Entry Cr&Dr'!$D$21,"") ->  | J20: =IF(J2=$B$20,'Entry Cr&Dr'!$D$21,"") ->  | K20: =IF(K2=$B$20,'Entry Cr&Dr'!$D$21,"") ->  | L20: =IF(L2=$B$20,'Entry Cr&Dr'!$D$21,"") ->  | M20: =IF(M2=$B$20,'Entry Cr&Dr'!$D$21,"") ->  | N20: =IF(N2=$B$20,'Entry Cr&Dr'!$D$21,"") ->  | O20: =IF(O2=$B$20,'Entry Cr&Dr'!$D$21,"") ->  | P20: =IF(P2=$B$20,'Entry Cr&Dr'!$D$21,"") ->  | Q20: =IF(Q2=$B$20,'Entry Cr&Dr'!$D$21,"") ->  | R20: =IF(R2=$B$20,'Entry Cr&Dr'!$D$21,"") ->  | S20: =IF(S2=$B$20,'Entry Cr&Dr'!$D$21,"") ->  | T20: =IF(T2=$B$20,'Entry Cr&Dr'!$D$21,"") ->  | U20: =IF(U2=$B$20,'Entry Cr&Dr'!$D$21,"") ->  | V20: =IF(V2=$B$20,'Entry Cr&Dr'!$D$21,"") -> 
A21: =IF('Entry Cr&Dr'!A22="","",'Entry Cr&Dr'!A22) -> 2020-07-18 | B21: =IF('Entry Cr&Dr'!B22="","",'Entry Cr&Dr'!B22) ->  | C21: =IF('Entry Cr&Dr'!C22="","",'Entry Cr&Dr'!C22) ->  | D21: =IF(D2=$B$21,'Entry Cr&Dr'!$D$22,"") ->  | E21: =IF(E2=$B$21,'Entry Cr&Dr'!$D$22,"") ->  | F21: =IF(F2=$B$21,'Entry Cr&Dr'!$D$22,"") ->  | G21: =IF(G2=$B$21,'Entry Cr&Dr'!$D$22,"") ->  | H21: =IF(H2=$B$21,'Entry Cr&Dr'!$D$22,"") ->  | I21: =IF(I2=$B$21,'Entry Cr&Dr'!$D$22,"") ->  | J21: =IF(J2=$B$21,'Entry Cr&Dr'!$D$22,"") ->  | K21: =IF(K2=$B$21,'Entry Cr&Dr'!$D$22,"") ->  | L21: =IF(L2=$B$21,'Entry Cr&Dr'!$D$22,"") ->  | M21: =IF(M2=$B$21,'Entry Cr&Dr'!$D$22,"") ->  | N21: =IF(N2=$B$21,'Entry Cr&Dr'!$D$22,"") ->  | O21: =IF(O2=$B$21,'Entry Cr&Dr'!$D$22,"") ->  | P21: =IF(P2=$B$21,'Entry Cr&Dr'!$D$22,"") ->  | Q21: =IF(Q2=$B$21,'Entry Cr&Dr'!$D$22,"") ->  | R21: =IF(R2=$B$21,'Entry Cr&Dr'!$D$22,"") ->  | S21: =IF(S2=$B$21,'Entry Cr&Dr'!$D$22,"") ->  | T21: =IF(T2=$B$21,'Entry Cr&Dr'!$D$22,"") ->  | U21: =IF(U2=$B$21,'Entry Cr&Dr'!$D$22,"") ->  | V21: =IF(V2=$B$21,'Entry Cr&Dr'!$D$22,"") -> 
A22: =IF('Entry Cr&Dr'!A23="","",'Entry Cr&Dr'!A23) -> 2020-07-19 | B22: =IF('Entry Cr&Dr'!B23="","",'Entry Cr&Dr'!B23) ->  | C22: =IF('Entry Cr&Dr'!C23="","",'Entry Cr&Dr'!C23) ->  | D22: =IF(D2=$B$22,'Entry Cr&Dr'!$D$23,"") ->  | E22: =IF(E2=$B$22,'Entry Cr&Dr'!$D$23,"") ->  | F22: =IF(F2=$B$22,'Entry Cr&Dr'!$D$23,"") ->  | G22: =IF(G2=$B$22,'Entry Cr&Dr'!$D$23,"") ->  | H22: =IF(H2=$B$22,'Entry Cr&Dr'!$D$23,"") ->  | I22: =IF(I2=$B$22,'Entry Cr&Dr'!$D$23,"") ->  | J22: =IF(J2=$B$22,'Entry Cr&Dr'!$D$23,"") ->  | K22: =IF(K2=$B$22,'Entry Cr&Dr'!$D$23,"") ->  | L22: =IF(L2=$B$22,'Entry Cr&Dr'!$D$23,"") ->  | M22: =IF(M2=$B$22,'Entry Cr&Dr'!$D$23,"") ->  | N22: =IF(N2=$B$22,'Entry Cr&Dr'!$D$23,"") ->  | O22: =IF(O2=$B$22,'Entry Cr&Dr'!$D$23,"") ->  | P22: =IF(P2=$B$22,'Entry Cr&Dr'!$D$23,"") ->  | Q22: =IF(Q2=$B$22,'Entry Cr&Dr'!$D$23,"") ->  | R22: =IF(R2=$B$22,'Entry Cr&Dr'!$D$23,"") ->  | S22: =IF(S2=$B$22,'Entry Cr&Dr'!$D$23,"") ->  | T22: =IF(T2=$B$22,'Entry Cr&Dr'!$D$23,"") ->  | U22: =IF(U2=$B$22,'Entry Cr&Dr'!$D$23,"") ->  | V22: =IF(V2=$B$22,'Entry Cr&Dr'!$D$23,"") -> 
A23: =IF('Entry Cr&Dr'!A24="","",'Entry Cr&Dr'!A24) -> 2020-07-20 | B23: =IF('Entry Cr&Dr'!B24="","",'Entry Cr&Dr'!B24) ->  | C23: =IF('Entry Cr&Dr'!C24="","",'Entry Cr&Dr'!C24) ->  | D23: =IF(D2=$B$23,'Entry Cr&Dr'!$D$24,"") ->  | E23: =IF(E2=$B$23,'Entry Cr&Dr'!$D$24,"") ->  | F23: =IF(F2=$B$23,'Entry Cr&Dr'!$D$24,"") ->  | G23: =IF(G2=$B$23,'Entry Cr&Dr'!$D$24,"") ->  | H23: =IF(H2=$B$23,'Entry Cr&Dr'!$D$24,"") ->  | I23: =IF(I2=$B$23,'Entry Cr&Dr'!$D$24,"") ->  | J23: =IF(J2=$B$23,'Entry Cr&Dr'!$D$24,"") ->  | K23: =IF(K2=$B$23,'Entry Cr&Dr'!$D$24,"") ->  | L23: =IF(L2=$B$23,'Entry Cr&Dr'!$D$24,"") ->  | M23: =IF(M2=$B$23,'Entry Cr&Dr'!$D$24,"") ->  | N23: =IF(N2=$B$23,'Entry Cr&Dr'!$D$24,"") ->  | O23: =IF(O2=$B$23,'Entry Cr&Dr'!$D$24,"") ->  | P23: =IF(P2=$B$23,'Entry Cr&Dr'!$D$24,"") ->  | Q23: =IF(Q2=$B$23,'Entry Cr&Dr'!$D$24,"") ->  | R23: =IF(R2=$B$23,'Entry Cr&Dr'!$D$24,"") ->  | S23: =IF(S2=$B$23,'Entry Cr&Dr'!$D$24,"") ->  | T23: =IF(T2=$B$23,'Entry Cr&Dr'!$D$24,"") ->  | U23: =IF(U2=$B$23,'Entry Cr&Dr'!$D$24,"") ->  | V23: =IF(V2=$B$23,'Entry Cr&Dr'!$D$24,"") -> 
A24: =IF('Entry Cr&Dr'!A25="","",'Entry Cr&Dr'!A25) -> 2020-07-21 | B24: =IF('Entry Cr&Dr'!B25="","",'Entry Cr&Dr'!B25) ->  | C24: =IF('Entry Cr&Dr'!C25="","",'Entry Cr&Dr'!C25) ->  | D24: =IF(D2=$B$24,'Entry Cr&Dr'!$D$25,"") ->  | E24: =IF(E2=$B$24,'Entry Cr&Dr'!$D$25,"") ->  | F24: =IF(F2=$B$24,'Entry Cr&Dr'!$D$25,"") ->  | G24: =IF(G2=$B$24,'Entry Cr&Dr'!$D$25,"") ->  | H24: =IF(H2=$B$24,'Entry Cr&Dr'!$D$25,"") ->  | I24: =IF(I2=$B$24,'Entry Cr&Dr'!$D$25,"") ->  | J24: =IF(J2=$B$24,'Entry Cr&Dr'!$D$25,"") ->  | K24: =IF(K2=$B$24,'Entry Cr&Dr'!$D$25,"") ->  | L24: =IF(L2=$B$24,'Entry Cr&Dr'!$D$25,"") ->  | M24: =IF(M2=$B$24,'Entry Cr&Dr'!$D$25,"") ->  | N24: =IF(N2=$B$24,'Entry Cr&Dr'!$D$25,"") ->  | O24: =IF(O2=$B$24,'Entry Cr&Dr'!$D$25,"") ->  | P24: =IF(P2=$B$24,'Entry Cr&Dr'!$D$25,"") ->  | Q24: =IF(Q2=$B$24,'Entry Cr&Dr'!$D$25,"") ->  | R24: =IF(R2=$B$24,'Entry Cr&Dr'!$D$25,"") ->  | S24: =IF(S2=$B$24,'Entry Cr&Dr'!$D$25,"") ->  | T24: =IF(T2=$B$24,'Entry Cr&Dr'!$D$25,"") ->  | U24: =IF(U2=$B$24,'Entry Cr&Dr'!$D$25,"") ->  | V24: =IF(V2=$B$24,'Entry Cr&Dr'!$D$25,"") -> 
A25: =IF('Entry Cr&Dr'!A26="","",'Entry Cr&Dr'!A26) -> 2020-07-22 | B25: =IF('Entry Cr&Dr'!B26="","",'Entry Cr&Dr'!B26) ->  | C25: =IF('Entry Cr&Dr'!C26="","",'Entry Cr&Dr'!C26) ->  | D25: =IF(D2=$B$25,'Entry Cr&Dr'!$D$26,"") ->  | E25: =IF(E2=$B$25,'Entry Cr&Dr'!$D$26,"") ->  | F25: =IF(F2=$B$25,'Entry Cr&Dr'!$D$26,"") ->  | G25: =IF(G2=$B$25,'Entry Cr&Dr'!$D$26,"") ->  | H25: =IF(H2=$B$25,'Entry Cr&Dr'!$D$26,"") ->  | I25: =IF(I2=$B$25,'Entry Cr&Dr'!$D$26,"") ->  | J25: =IF(J2=$B$25,'Entry Cr&Dr'!$D$26,"") ->  | K25: =IF(K2=$B$25,'Entry Cr&Dr'!$D$26,"") ->  | L25: =IF(L2=$B$25,'Entry Cr&Dr'!$D$26,"") ->  | M25: =IF(M2=$B$25,'Entry Cr&Dr'!$D$26,"") ->  | N25: =IF(N2=$B$25,'Entry Cr&Dr'!$D$26,"") ->  | O25: =IF(O2=$B$25,'Entry Cr&Dr'!$D$26,"") ->  | P25: =IF(P2=$B$25,'Entry Cr&Dr'!$D$26,"") ->  | Q25: =IF(Q2=$B$25,'Entry Cr&Dr'!$D$26,"") ->  | R25: =IF(R2=$B$25,'Entry Cr&Dr'!$D$26,"") ->  | S25: =IF(S2=$B$25,'Entry Cr&Dr'!$D$26,"") ->  | T25: =IF(T2=$B$25,'Entry Cr&Dr'!$D$26,"") ->  | U25: =IF(U2=$B$25,'Entry Cr&Dr'!$D$26,"") ->  | V25: =IF(V2=$B$25,'Entry Cr&Dr'!$D$26,"") -> 
A26: =IF('Entry Cr&Dr'!A27="","",'Entry Cr&Dr'!A27) -> 2020-07-23 | B26: =IF('Entry Cr&Dr'!B27="","",'Entry Cr&Dr'!B27) ->  | C26: =IF('Entry Cr&Dr'!C27="","",'Entry Cr&Dr'!C27) ->  | D26: =IF(D2=$B$26,'Entry Cr&Dr'!$D$27,"") ->  | E26: =IF(E2=$B$26,'Entry Cr&Dr'!$D$27,"") ->  | F26: =IF(F2=$B$26,'Entry Cr&Dr'!$D$27,"") ->  | G26: =IF(G2=$B$26,'Entry Cr&Dr'!$D$27,"") ->  | H26: =IF(H2=$B$26,'Entry Cr&Dr'!$D$27,"") ->  | I26: =IF(I2=$B$26,'Entry Cr&Dr'!$D$27,"") ->  | J26: =IF(J2=$B$26,'Entry Cr&Dr'!$D$27,"") ->  | K26: =IF(K2=$B$26,'Entry Cr&Dr'!$D$27,"") ->  | L26: =IF(L2=$B$26,'Entry Cr&Dr'!$D$27,"") ->  | M26: =IF(M2=$B$26,'Entry Cr&Dr'!$D$27,"") ->  | N26: =IF(N2=$B$26,'Entry Cr&Dr'!$D$27,"") ->  | O26: =IF(O2=$B$26,'Entry Cr&Dr'!$D$27,"") ->  | P26: =IF(P2=$B$26,'Entry Cr&Dr'!$D$27,"") ->  | Q26: =IF(Q2=$B$26,'Entry Cr&Dr'!$D$27,"") ->  | R26: =IF(R2=$B$26,'Entry Cr&Dr'!$D$27,"") ->  | S26: =IF(S2=$B$26,'Entry Cr&Dr'!$D$27,"") ->  | T26: =IF(T2=$B$26,'Entry Cr&Dr'!$D$27,"") ->  | U26: =IF(U2=$B$26,'Entry Cr&Dr'!$D$27,"") ->  | V26: =IF(V2=$B$26,'Entry Cr&Dr'!$D$27,"") -> 
A27: =IF('Entry Cr&Dr'!A28="","",'Entry Cr&Dr'!A28) -> 2020-07-24 | B27: =IF('Entry Cr&Dr'!B28="","",'Entry Cr&Dr'!B28) ->  | C27: =IF('Entry Cr&Dr'!C28="","",'Entry Cr&Dr'!C28) ->  | D27: =IF(D2=$B$27,'Entry Cr&Dr'!$D$28,"") ->  | E27: =IF(E2=$B$27,'Entry Cr&Dr'!$D$28,"") ->  | F27: =IF(F2=$B$27,'Entry Cr&Dr'!$D$28,"") ->  | G27: =IF(G2=$B$27,'Entry Cr&Dr'!$D$28,"") ->  | H27: =IF(H2=$B$27,'Entry Cr&Dr'!$D$28,"") ->  | I27: =IF(I2=$B$27,'Entry Cr&Dr'!$D$28,"") ->  | J27: =IF(J2=$B$27,'Entry Cr&Dr'!$D$28,"") ->  | K27: =IF(K2=$B$27,'Entry Cr&Dr'!$D$28,"") ->  | L27: =IF(L2=$B$27,'Entry Cr&Dr'!$D$28,"") ->  | M27: =IF(M2=$B$27,'Entry Cr&Dr'!$D$28,"") ->  | N27: =IF(N2=$B$27,'Entry Cr&Dr'!$D$28,"") ->  | O27: =IF(O2=$B$27,'Entry Cr&Dr'!$D$28,"") ->  | P27: =IF(P2=$B$27,'Entry Cr&Dr'!$D$28,"") ->  | Q27: =IF(Q2=$B$27,'Entry Cr&Dr'!$D$28,"") ->  | R27: =IF(R2=$B$27,'Entry Cr&Dr'!$D$28,"") ->  | S27: =IF(S2=$B$27,'Entry Cr&Dr'!$D$28,"") ->  | T27: =IF(T2=$B$27,'Entry Cr&Dr'!$D$28,"") ->  | U27: =IF(U2=$B$27,'Entry Cr&Dr'!$D$28,"") ->  | V27: =IF(V2=$B$27,'Entry Cr&Dr'!$D$28,"") -> 
A28: =IF('Entry Cr&Dr'!A29="","",'Entry Cr&Dr'!A29) -> 2020-07-25 | B28: =IF('Entry Cr&Dr'!B29="","",'Entry Cr&Dr'!B29) ->  | C28: =IF('Entry Cr&Dr'!C29="","",'Entry Cr&Dr'!C29) ->  | D28: =IF(D2=$B$28,'Entry Cr&Dr'!$D$29,"") ->  | E28: =IF(E2=$B$28,'Entry Cr&Dr'!$D$29,"") ->  | F28: =IF(F2=$B$28,'Entry Cr&Dr'!$D$29,"") ->  | G28: =IF(G2=$B$28,'Entry Cr&Dr'!$D$29,"") ->  | H28: =IF(H2=$B$28,'Entry Cr&Dr'!$D$29,"") ->  | I28: =IF(I2=$B$28,'Entry Cr&Dr'!$D$29,"") ->  | J28: =IF(J2=$B$28,'Entry Cr&Dr'!$D$29,"") ->  | K28: =IF(K2=$B$28,'Entry Cr&Dr'!$D$29,"") ->  | L28: =IF(L2=$B$28,'Entry Cr&Dr'!$D$29,"") ->  | M28: =IF(M2=$B$28,'Entry Cr&Dr'!$D$29,"") ->  | N28: =IF(N2=$B$28,'Entry Cr&Dr'!$D$29,"") ->  | O28: =IF(O2=$B$28,'Entry Cr&Dr'!$D$29,"") ->  | P28: =IF(P2=$B$28,'Entry Cr&Dr'!$D$29,"") ->  | Q28: =IF(Q2=$B$28,'Entry Cr&Dr'!$D$29,"") ->  | R28: =IF(R2=$B$28,'Entry Cr&Dr'!$D$29,"") ->  | S28: =IF(S2=$B$28,'Entry Cr&Dr'!$D$29,"") ->  | T28: =IF(T2=$B$28,'Entry Cr&Dr'!$D$29,"") ->  | U28: =IF(U2=$B$28,'Entry Cr&Dr'!$D$29,"") ->  | V28: =IF(V2=$B$28,'Entry Cr&Dr'!$D$29,"") -> 
A29: =IF('Entry Cr&Dr'!A30="","",'Entry Cr&Dr'!A30) -> 2020-07-26 | B29: =IF('Entry Cr&Dr'!B30="","",'Entry Cr&Dr'!B30) ->  | C29: =IF('Entry Cr&Dr'!C30="","",'Entry Cr&Dr'!C30) ->  | D29: =IF(D2=$B$29,'Entry Cr&Dr'!$D$30,"") ->  | E29: =IF(E2=$B$29,'Entry Cr&Dr'!$D$30,"") ->  | F29: =IF(F2=$B$29,'Entry Cr&Dr'!$D$30,"") ->  | G29: =IF(G2=$B$29,'Entry Cr&Dr'!$D$30,"") ->  | H29: =IF(H2=$B$29,'Entry Cr&Dr'!$D$30,"") ->  | I29: =IF(I2=$B$29,'Entry Cr&Dr'!$D$30,"") ->  | J29: =IF(J2=$B$29,'Entry Cr&Dr'!$D$30,"") ->  | K29: =IF(K2=$B$29,'Entry Cr&Dr'!$D$30,"") ->  | L29: =IF(L2=$B$29,'Entry Cr&Dr'!$D$30,"") ->  | M29: =IF(M2=$B$29,'Entry Cr&Dr'!$D$30,"") ->  | N29: =IF(N2=$B$29,'Entry Cr&Dr'!$D$30,"") ->  | O29: =IF(O2=$B$29,'Entry Cr&Dr'!$D$30,"") ->  | P29: =IF(P2=$B$29,'Entry Cr&Dr'!$D$30,"") ->  | Q29: =IF(Q2=$B$29,'Entry Cr&Dr'!$D$30,"") ->  | R29: =IF(R2=$B$29,'Entry Cr&Dr'!$D$30,"") ->  | S29: =IF(S2=$B$29,'Entry Cr&Dr'!$D$30,"") ->  | T29: =IF(T2=$B$29,'Entry Cr&Dr'!$D$30,"") ->  | U29: =IF(U2=$B$29,'Entry Cr&Dr'!$D$30,"") ->  | V29: =IF(V2=$B$29,'Entry Cr&Dr'!$D$30,"") -> 
A30: =IF('Entry Cr&Dr'!A31="","",'Entry Cr&Dr'!A31) -> 2020-07-27 | B30: =IF('Entry Cr&Dr'!B31="","",'Entry Cr&Dr'!B31) ->  | C30: =IF('Entry Cr&Dr'!C31="","",'Entry Cr&Dr'!C31) ->  | D30: =IF(D2=$B$30,'Entry Cr&Dr'!$D$31,"") ->  | E30: =IF(E2=$B$30,'Entry Cr&Dr'!$D$31,"") ->  | F30: =IF(F2=$B$30,'Entry Cr&Dr'!$D$31,"") ->  | G30: =IF(G2=$B$30,'Entry Cr&Dr'!$D$31,"") ->  | H30: =IF(H2=$B$30,'Entry Cr&Dr'!$D$31,"") ->  | I30: =IF(I2=$B$30,'Entry Cr&Dr'!$D$31,"") ->  | J30: =IF(J2=$B$30,'Entry Cr&Dr'!$D$31,"") ->  | K30: =IF(K2=$B$30,'Entry Cr&Dr'!$D$31,"") ->  | L30: =IF(L2=$B$30,'Entry Cr&Dr'!$D$31,"") ->  | M30: =IF(M2=$B$30,'Entry Cr&Dr'!$D$31,"") ->  | N30: =IF(N2=$B$30,'Entry Cr&Dr'!$D$31,"") ->  | O30: =IF(O2=$B$30,'Entry Cr&Dr'!$D$31,"") ->  | P30: =IF(P2=$B$30,'Entry Cr&Dr'!$D$31,"") ->  | Q30: =IF(Q2=$B$30,'Entry Cr&Dr'!$D$31,"") ->  | R30: =IF(R2=$B$30,'Entry Cr&Dr'!$D$31,"") ->  | S30: =IF(S2=$B$30,'Entry Cr&Dr'!$D$31,"") ->  | T30: =IF(T2=$B$30,'Entry Cr&Dr'!$D$31,"") ->  | U30: =IF(U2=$B$30,'Entry Cr&Dr'!$D$31,"") ->  | V30: =IF(V2=$B$30,'Entry Cr&Dr'!$D$31,"") -> 
A31: =IF('Entry Cr&Dr'!A32="","",'Entry Cr&Dr'!A32) -> 2020-07-28 | B31: =IF('Entry Cr&Dr'!B32="","",'Entry Cr&Dr'!B32) ->  | C31: =IF('Entry Cr&Dr'!C32="","",'Entry Cr&Dr'!C32) ->  | D31: =IF(D2=$B$31,'Entry Cr&Dr'!$D$32,"") ->  | E31: =IF(E2=$B$31,'Entry Cr&Dr'!$D$32,"") ->  | F31: =IF(F2=$B$31,'Entry Cr&Dr'!$D$32,"") ->  | G31: =IF(G2=$B$31,'Entry Cr&Dr'!$D$32,"") ->  | H31: =IF(H2=$B$31,'Entry Cr&Dr'!$D$32,"") ->  | I31: =IF(I2=$B$31,'Entry Cr&Dr'!$D$32,"") ->  | J31: =IF(J2=$B$31,'Entry Cr&Dr'!$D$32,"") ->  | K31: =IF(K2=$B$31,'Entry Cr&Dr'!$D$32,"") ->  | L31: =IF(L2=$B$31,'Entry Cr&Dr'!$D$32,"") ->  | M31: =IF(M2=$B$31,'Entry Cr&Dr'!$D$32,"") ->  | N31: =IF(N2=$B$31,'Entry Cr&Dr'!$D$32,"") ->  | O31: =IF(O2=$B$31,'Entry Cr&Dr'!$D$32,"") ->  | P31: =IF(P2=$B$31,'Entry Cr&Dr'!$D$32,"") ->  | Q31: =IF(Q2=$B$31,'Entry Cr&Dr'!$D$32,"") ->  | R31: =IF(R2=$B$31,'Entry Cr&Dr'!$D$32,"") ->  | S31: =IF(S2=$B$31,'Entry Cr&Dr'!$D$32,"") ->  | T31: =IF(T2=$B$31,'Entry Cr&Dr'!$D$32,"") ->  | U31: =IF(U2=$B$31,'Entry Cr&Dr'!$D$32,"") ->  | V31: =IF(V2=$B$31,'Entry Cr&Dr'!$D$32,"") -> 
A32: =IF('Entry Cr&Dr'!A33="","",'Entry Cr&Dr'!A33) -> 2020-07-29 | B32: =IF('Entry Cr&Dr'!B33="","",'Entry Cr&Dr'!B33) ->  | C32: =IF('Entry Cr&Dr'!C33="","",'Entry Cr&Dr'!C33) ->  | D32: =IF(D2=$B$32,'Entry Cr&Dr'!$D$33,"") ->  | E32: =IF(E2=$B$32,'Entry Cr&Dr'!$D$33,"") ->  | F32: =IF(F2=$B$32,'Entry Cr&Dr'!$D$33,"") ->  | G32: =IF(G2=$B$32,'Entry Cr&Dr'!$D$33,"") ->  | H32: =IF(H2=$B$32,'Entry Cr&Dr'!$D$33,"") ->  | I32: =IF(I2=$B$32,'Entry Cr&Dr'!$D$33,"") ->  | J32: =IF(J2=$B$32,'Entry Cr&Dr'!$D$33,"") ->  | K32: =IF(K2=$B$32,'Entry Cr&Dr'!$D$33,"") ->  | L32: =IF(L2=$B$32,'Entry Cr&Dr'!$D$33,"") ->  | M32: =IF(M2=$B$32,'Entry Cr&Dr'!$D$33,"") ->  | N32: =IF(N2=$B$32,'Entry Cr&Dr'!$D$33,"") ->  | O32: =IF(O2=$B$32,'Entry Cr&Dr'!$D$33,"") ->  | P32: =IF(P2=$B$32,'Entry Cr&Dr'!$D$33,"") ->  | Q32: =IF(Q2=$B$32,'Entry Cr&Dr'!$D$33,"") ->  | R32: =IF(R2=$B$32,'Entry Cr&Dr'!$D$33,"") ->  | S32: =IF(S2=$B$32,'Entry Cr&Dr'!$D$33,"") ->  | T32: =IF(T2=$B$32,'Entry Cr&Dr'!$D$33,"") ->  | U32: =IF(U2=$B$32,'Entry Cr&Dr'!$D$33,"") ->  | V32: =IF(V2=$B$32,'Entry Cr&Dr'!$D$33,"") -> 
A33: =IF('Entry Cr&Dr'!A34="","",'Entry Cr&Dr'!A34) -> 2020-07-30 | B33: =IF('Entry Cr&Dr'!B34="","",'Entry Cr&Dr'!B34) ->  | C33: =IF('Entry Cr&Dr'!C34="","",'Entry Cr&Dr'!C34) ->  | D33: =IF(D2=$B$33,'Entry Cr&Dr'!$D$34,"") ->  | E33: =IF(E2=$B$33,'Entry Cr&Dr'!$D$34,"") ->  | F33: =IF(F2=$B$33,'Entry Cr&Dr'!$D$34,"") ->  | G33: =IF(G2=$B$33,'Entry Cr&Dr'!$D$34,"") ->  | H33: =IF(H2=$B$33,'Entry Cr&Dr'!$D$34,"") ->  | I33: =IF(I2=$B$33,'Entry Cr&Dr'!$D$34,"") ->  | J33: =IF(J2=$B$33,'Entry Cr&Dr'!$D$34,"") ->  | K33: =IF(K2=$B$33,'Entry Cr&Dr'!$D$34,"") ->  | L33: =IF(L2=$B$33,'Entry Cr&Dr'!$D$34,"") ->  | M33: =IF(M2=$B$33,'Entry Cr&Dr'!$D$34,"") ->  | N33: =IF(N2=$B$33,'Entry Cr&Dr'!$D$34,"") ->  | O33: =IF(O2=$B$33,'Entry Cr&Dr'!$D$34,"") ->  | P33: =IF(P2=$B$33,'Entry Cr&Dr'!$D$34,"") ->  | Q33: =IF(Q2=$B$33,'Entry Cr&Dr'!$D$34,"") ->  | R33: =IF(R2=$B$33,'Entry Cr&Dr'!$D$34,"") ->  | S33: =IF(S2=$B$33,'Entry Cr&Dr'!$D$34,"") ->  | T33: =IF(T2=$B$33,'Entry Cr&Dr'!$D$34,"") ->  | U33: =IF(U2=$B$33,'Entry Cr&Dr'!$D$34,"") ->  | V33: =IF(V2=$B$33,'Entry Cr&Dr'!$D$34,"") -> 
A34: =IF('Entry Cr&Dr'!A35="","",'Entry Cr&Dr'!A35) -> 2020-07-31 | B34: =IF('Entry Cr&Dr'!B35="","",'Entry Cr&Dr'!B35) ->  | C34: =IF('Entry Cr&Dr'!C35="","",'Entry Cr&Dr'!C35) ->  | D34: =IF(D2=$B$34,'Entry Cr&Dr'!$D$35,"") ->  | E34: =IF(E2=$B$34,'Entry Cr&Dr'!$D$35,"") ->  | F34: =IF(F2=$B$34,'Entry Cr&Dr'!$D$35,"") ->  | G34: =IF(G2=$B$34,'Entry Cr&Dr'!$D$35,"") ->  | H34: =IF(H2=$B$34,'Entry Cr&Dr'!$D$35,"") ->  | I34: =IF(I2=$B$34,'Entry Cr&Dr'!$D$35,"") ->  | J34: =IF(J2=$B$34,'Entry Cr&Dr'!$D$35,"") ->  | K34: =IF(K2=$B$34,'Entry Cr&Dr'!$D$35,"") ->  | L34: =IF(L2=$B$34,'Entry Cr&Dr'!$D$35,"") ->  | M34: =IF(M2=$B$34,'Entry Cr&Dr'!$D$35,"") ->  | N34: =IF(N2=$B$34,'Entry Cr&Dr'!$D$35,"") ->  | O34: =IF(O2=$B$34,'Entry Cr&Dr'!$D$35,"") ->  | P34: =IF(P2=$B$34,'Entry Cr&Dr'!$D$35,"") ->  | Q34: =IF(Q2=$B$34,'Entry Cr&Dr'!$D$35,"") ->  | R34: =IF(R2=$B$34,'Entry Cr&Dr'!$D$35,"") ->  | S34: =IF(S2=$B$34,'Entry Cr&Dr'!$D$35,"") ->  | T34: =IF(T2=$B$34,'Entry Cr&Dr'!$D$35,"") ->  | U34: =IF(U2=$B$34,'Entry Cr&Dr'!$D$35,"") ->  | V34: =IF(V2=$B$34,'Entry Cr&Dr'!$D$35,"") -> 
A35: =IF('Entry Cr&Dr'!A36="","",'Entry Cr&Dr'!A36) -> 2020-08-01 | B35: =IF('Entry Cr&Dr'!B36="","",'Entry Cr&Dr'!B36) ->  | C35: =IF('Entry Cr&Dr'!C36="","",'Entry Cr&Dr'!C36) ->  | D35: =IF(D2=$B$35,'Entry Cr&Dr'!$D$36,"") ->  | E35: =IF(E2=$B$35,'Entry Cr&Dr'!$D$36,"") ->  | F35: =IF(F2=$B$35,'Entry Cr&Dr'!$D$36,"") ->  | G35: =IF(G2=$B$35,'Entry Cr&Dr'!$D$36,"") ->  | H35: =IF(H2=$B$35,'Entry Cr&Dr'!$D$36,"") ->  | I35: =IF(I2=$B$35,'Entry Cr&Dr'!$D$36,"") ->  | J35: =IF(J2=$B$35,'Entry Cr&Dr'!$D$36,"") ->  | K35: =IF(K2=$B$35,'Entry Cr&Dr'!$D$36,"") ->  | L35: =IF(L2=$B$35,'Entry Cr&Dr'!$D$36,"") ->  | M35: =IF(M2=$B$35,'Entry Cr&Dr'!$D$36,"") ->  | N35: =IF(N2=$B$35,'Entry Cr&Dr'!$D$36,"") ->  | O35: =IF(O2=$B$35,'Entry Cr&Dr'!$D$36,"") ->  | P35: =IF(P2=$B$35,'Entry Cr&Dr'!$D$36,"") ->  | Q35: =IF(Q2=$B$35,'Entry Cr&Dr'!$D$36,"") ->  | R35: =IF(R2=$B$35,'Entry Cr&Dr'!$D$36,"") ->  | S35: =IF(S2=$B$35,'Entry Cr&Dr'!$D$36,"") ->  | T35: =IF(T2=$B$35,'Entry Cr&Dr'!$D$36,"") ->  | U35: =IF(U2=$B$35,'Entry Cr&Dr'!$D$36,"") ->  | V35: =IF(V2=$B$35,'Entry Cr&Dr'!$D$36,"") -> 
A36: =IF('Entry Cr&Dr'!A37="","",'Entry Cr&Dr'!A37) -> 2020-08-02 | B36: =IF('Entry Cr&Dr'!B37="","",'Entry Cr&Dr'!B37) ->  | C36: =IF('Entry Cr&Dr'!C37="","",'Entry Cr&Dr'!C37) ->  | D36: =IF(D2=$B$36,'Entry Cr&Dr'!$D$37,"") ->  | E36: =IF(E2=$B$36,'Entry Cr&Dr'!$D$37,"") ->  | F36: =IF(F2=$B$36,'Entry Cr&Dr'!$D$37,"") ->  | G36: =IF(G2=$B$36,'Entry Cr&Dr'!$D$37,"") ->  | H36: =IF(H2=$B$36,'Entry Cr&Dr'!$D$37,"") ->  | I36: =IF(I2=$B$36,'Entry Cr&Dr'!$D$37,"") ->  | J36: =IF(J2=$B$36,'Entry Cr&Dr'!$D$37,"") ->  | K36: =IF(K2=$B$36,'Entry Cr&Dr'!$D$37,"") ->  | L36: =IF(L2=$B$36,'Entry Cr&Dr'!$D$37,"") ->  | M36: =IF(M2=$B$36,'Entry Cr&Dr'!$D$37,"") ->  | N36: =IF(N2=$B$36,'Entry Cr&Dr'!$D$37,"") ->  | O36: =IF(O2=$B$36,'Entry Cr&Dr'!$D$37,"") ->  | P36: =IF(P2=$B$36,'Entry Cr&Dr'!$D$37,"") ->  | Q36: =IF(Q2=$B$36,'Entry Cr&Dr'!$D$37,"") ->  | R36: =IF(R2=$B$36,'Entry Cr&Dr'!$D$37,"") ->  | S36: =IF(S2=$B$36,'Entry Cr&Dr'!$D$37,"") ->  | T36: =IF(T2=$B$36,'Entry Cr&Dr'!$D$37,"") ->  | U36: =IF(U2=$B$36,'Entry Cr&Dr'!$D$37,"") ->  | V36: =IF(V2=$B$36,'Entry Cr&Dr'!$D$37,"") -> 
A37: =IF('Entry Cr&Dr'!A38="","",'Entry Cr&Dr'!A38) -> 2020-08-03 | B37: =IF('Entry Cr&Dr'!B38="","",'Entry Cr&Dr'!B38) ->  | C37: =IF('Entry Cr&Dr'!C38="","",'Entry Cr&Dr'!C38) ->  | D37: =IF(D2=$B$37,'Entry Cr&Dr'!$D$38,"") ->  | E37: =IF(E2=$B$37,'Entry Cr&Dr'!$D$38,"") ->  | F37: =IF(F2=$B$37,'Entry Cr&Dr'!$D$38,"") ->  | G37: =IF(G2=$B$37,'Entry Cr&Dr'!$D$38,"") ->  | H37: =IF(H2=$B$37,'Entry Cr&Dr'!$D$38,"") ->  | I37: =IF(I2=$B$37,'Entry Cr&Dr'!$D$38,"") ->  | J37: =IF(J2=$B$37,'Entry Cr&Dr'!$D$38,"") ->  | K37: =IF(K2=$B$37,'Entry Cr&Dr'!$D$38,"") ->  | L37: =IF(L2=$B$37,'Entry Cr&Dr'!$D$38,"") ->  | M37: =IF(M2=$B$37,'Entry Cr&Dr'!$D$38,"") ->  | N37: =IF(N2=$B$37,'Entry Cr&Dr'!$D$38,"") ->  | O37: =IF(O2=$B$37,'Entry Cr&Dr'!$D$38,"") ->  | P37: =IF(P2=$B$37,'Entry Cr&Dr'!$D$38,"") ->  | Q37: =IF(Q2=$B$37,'Entry Cr&Dr'!$D$38,"") ->  | R37: =IF(R2=$B$37,'Entry Cr&Dr'!$D$38,"") ->  | S37: =IF(S2=$B$37,'Entry Cr&Dr'!$D$38,"") ->  | T37: =IF(T2=$B$37,'Entry Cr&Dr'!$D$38,"") ->  | U37: =IF(U2=$B$37,'Entry Cr&Dr'!$D$38,"") ->  | V37: =IF(V2=$B$37,'Entry Cr&Dr'!$D$38,"") -> 
A38: =IF('Entry Cr&Dr'!A39="","",'Entry Cr&Dr'!A39) -> 2020-08-04 | B38: =IF('Entry Cr&Dr'!B39="","",'Entry Cr&Dr'!B39) ->  | C38: =IF('Entry Cr&Dr'!C39="","",'Entry Cr&Dr'!C39) ->  | D38: =IF(D2=$B$38,'Entry Cr&Dr'!$D$39,"") ->  | E38: =IF(E2=$B$38,'Entry Cr&Dr'!$D$39,"") ->  | F38: =IF(F2=$B$38,'Entry Cr&Dr'!$D$39,"") ->  | G38: =IF(G2=$B$38,'Entry Cr&Dr'!$D$39,"") ->  | H38: =IF(H2=$B$38,'Entry Cr&Dr'!$D$39,"") ->  | I38: =IF(I2=$B$38,'Entry Cr&Dr'!$D$39,"") ->  | J38: =IF(J2=$B$38,'Entry Cr&Dr'!$D$39,"") ->  | K38: =IF(K2=$B$38,'Entry Cr&Dr'!$D$39,"") ->  | L38: =IF(L2=$B$38,'Entry Cr&Dr'!$D$39,"") ->  | M38: =IF(M2=$B$38,'Entry Cr&Dr'!$D$39,"") ->  | N38: =IF(N2=$B$38,'Entry Cr&Dr'!$D$39,"") ->  | O38: =IF(O2=$B$38,'Entry Cr&Dr'!$D$39,"") ->  | P38: =IF(P2=$B$38,'Entry Cr&Dr'!$D$39,"") ->  | Q38: =IF(Q2=$B$38,'Entry Cr&Dr'!$D$39,"") ->  | R38: =IF(R2=$B$38,'Entry Cr&Dr'!$D$39,"") ->  | S38: =IF(S2=$B$38,'Entry Cr&Dr'!$D$39,"") ->  | T38: =IF(T2=$B$38,'Entry Cr&Dr'!$D$39,"") ->  | U38: =IF(U2=$B$38,'Entry Cr&Dr'!$D$39,"") ->  | V38: =IF(V2=$B$38,'Entry Cr&Dr'!$D$39,"") -> 
A39: =IF('Entry Cr&Dr'!A40="","",'Entry Cr&Dr'!A40) -> 2020-08-05 | B39: =IF('Entry Cr&Dr'!B40="","",'Entry Cr&Dr'!B40) ->  | C39: =IF('Entry Cr&Dr'!C40="","",'Entry Cr&Dr'!C40) ->  | D39: =IF(D2=$B$39,'Entry Cr&Dr'!$D$40,"") ->  | E39: =IF(E2=$B$39,'Entry Cr&Dr'!$D$40,"") ->  | F39: =IF(F2=$B$39,'Entry Cr&Dr'!$D$40,"") ->  | G39: =IF(G2=$B$39,'Entry Cr&Dr'!$D$40,"") ->  | H39: =IF(H2=$B$39,'Entry Cr&Dr'!$D$40,"") ->  | I39: =IF(I2=$B$39,'Entry Cr&Dr'!$D$40,"") ->  | J39: =IF(J2=$B$39,'Entry Cr&Dr'!$D$40,"") ->  | K39: =IF(K2=$B$39,'Entry Cr&Dr'!$D$40,"") ->  | L39: =IF(L2=$B$39,'Entry Cr&Dr'!$D$40,"") ->  | M39: =IF(M2=$B$39,'Entry Cr&Dr'!$D$40,"") ->  | N39: =IF(N2=$B$39,'Entry Cr&Dr'!$D$40,"") ->  | O39: =IF(O2=$B$39,'Entry Cr&Dr'!$D$40,"") ->  | P39: =IF(P2=$B$39,'Entry Cr&Dr'!$D$40,"") ->  | Q39: =IF(Q2=$B$39,'Entry Cr&Dr'!$D$40,"") ->  | R39: =IF(R2=$B$39,'Entry Cr&Dr'!$D$40,"") ->  | S39: =IF(S2=$B$39,'Entry Cr&Dr'!$D$40,"") ->  | T39: =IF(T2=$B$39,'Entry Cr&Dr'!$D$40,"") ->  | U39: =IF(U2=$B$39,'Entry Cr&Dr'!$D$40,"") ->  | V39: =IF(V2=$B$39,'Entry Cr&Dr'!$D$40,"") -> 
A40: =IF('Entry Cr&Dr'!A41="","",'Entry Cr&Dr'!A41) -> 2020-08-06 | B40: =IF('Entry Cr&Dr'!B41="","",'Entry Cr&Dr'!B41) ->  | C40: =IF('Entry Cr&Dr'!C41="","",'Entry Cr&Dr'!C41) ->  | D40: =IF(D2=$B$40,'Entry Cr&Dr'!$D$41,"") ->  | E40: =IF(E2=$B$40,'Entry Cr&Dr'!$D$41,"") ->  | F40: =IF(F2=$B$40,'Entry Cr&Dr'!$D$41,"") ->  | G40: =IF(G2=$B$40,'Entry Cr&Dr'!$D$41,"") ->  | H40: =IF(H2=$B$40,'Entry Cr&Dr'!$D$41,"") ->  | I40: =IF(I2=$B$40,'Entry Cr&Dr'!$D$41,"") ->  | J40: =IF(J2=$B$40,'Entry Cr&Dr'!$D$41,"") ->  | K40: =IF(K2=$B$40,'Entry Cr&Dr'!$D$41,"") ->  | L40: =IF(L2=$B$40,'Entry Cr&Dr'!$D$41,"") ->  | M40: =IF(M2=$B$40,'Entry Cr&Dr'!$D$41,"") ->  | N40: =IF(N2=$B$40,'Entry Cr&Dr'!$D$41,"") ->  | O40: =IF(O2=$B$40,'Entry Cr&Dr'!$D$41,"") ->  | P40: =IF(P2=$B$40,'Entry Cr&Dr'!$D$41,"") ->  | Q40: =IF(Q2=$B$40,'Entry Cr&Dr'!$D$41,"") ->  | R40: =IF(R2=$B$40,'Entry Cr&Dr'!$D$41,"") ->  | S40: =IF(S2=$B$40,'Entry Cr&Dr'!$D$41,"") ->  | T40: =IF(T2=$B$40,'Entry Cr&Dr'!$D$41,"") ->  | U40: =IF(U2=$B$40,'Entry Cr&Dr'!$D$41,"") ->  | V40: =IF(V2=$B$40,'Entry Cr&Dr'!$D$41,"") -> 
A41: =IF('Entry Cr&Dr'!A42="","",'Entry Cr&Dr'!A42) -> 2020-08-07 | B41: =IF('Entry Cr&Dr'!B42="","",'Entry Cr&Dr'!B42) ->  | C41: =IF('Entry Cr&Dr'!C42="","",'Entry Cr&Dr'!C42) ->  | D41: =IF(D2=$B$41,'Entry Cr&Dr'!$D$42,"") ->  | E41: =IF(E2=$B$41,'Entry Cr&Dr'!$D$42,"") ->  | F41: =IF(F2=$B$41,'Entry Cr&Dr'!$D$42,"") ->  | G41: =IF(G2=$B$41,'Entry Cr&Dr'!$D$42,"") ->  | H41: =IF(H2=$B$41,'Entry Cr&Dr'!$D$42,"") ->  | I41: =IF(I2=$B$41,'Entry Cr&Dr'!$D$42,"") ->  | J41: =IF(J2=$B$41,'Entry Cr&Dr'!$D$42,"") ->  | K41: =IF(K2=$B$41,'Entry Cr&Dr'!$D$42,"") ->  | L41: =IF(L2=$B$41,'Entry Cr&Dr'!$D$42,"") ->  | M41: =IF(M2=$B$41,'Entry Cr&Dr'!$D$42,"") ->  | N41: =IF(N2=$B$41,'Entry Cr&Dr'!$D$42,"") ->  | O41: =IF(O2=$B$41,'Entry Cr&Dr'!$D$42,"") ->  | P41: =IF(P2=$B$41,'Entry Cr&Dr'!$D$42,"") ->  | Q41: =IF(Q2=$B$41,'Entry Cr&Dr'!$D$42,"") ->  | R41: =IF(R2=$B$41,'Entry Cr&Dr'!$D$42,"") ->  | S41: =IF(S2=$B$41,'Entry Cr&Dr'!$D$42,"") ->  | T41: =IF(T2=$B$41,'Entry Cr&Dr'!$D$42,"") ->  | U41: =IF(U2=$B$41,'Entry Cr&Dr'!$D$42,"") ->  | V41: =IF(V2=$B$41,'Entry Cr&Dr'!$D$42,"") -> 
A42: =IF('Entry Cr&Dr'!A43="","",'Entry Cr&Dr'!A43) -> 2020-08-08 | B42: =IF('Entry Cr&Dr'!B43="","",'Entry Cr&Dr'!B43) ->  | C42: =IF('Entry Cr&Dr'!C43="","",'Entry Cr&Dr'!C43) ->  | D42: =IF(D2=$B$42,'Entry Cr&Dr'!$D$43,"") ->  | E42: =IF(E2=$B$42,'Entry Cr&Dr'!$D$43,"") ->  | F42: =IF(F2=$B$42,'Entry Cr&Dr'!$D$43,"") ->  | G42: =IF(G2=$B$42,'Entry Cr&Dr'!$D$43,"") ->  | H42: =IF(H2=$B$42,'Entry Cr&Dr'!$D$43,"") ->  | I42: =IF(I2=$B$42,'Entry Cr&Dr'!$D$43,"") ->  | J42: =IF(J2=$B$42,'Entry Cr&Dr'!$D$43,"") ->  | K42: =IF(K2=$B$42,'Entry Cr&Dr'!$D$43,"") ->  | L42: =IF(L2=$B$42,'Entry Cr&Dr'!$D$43,"") ->  | M42: =IF(M2=$B$42,'Entry Cr&Dr'!$D$43,"") ->  | N42: =IF(N2=$B$42,'Entry Cr&Dr'!$D$43,"") ->  | O42: =IF(O2=$B$42,'Entry Cr&Dr'!$D$43,"") ->  | P42: =IF(P2=$B$42,'Entry Cr&Dr'!$D$43,"") ->  | Q42: =IF(Q2=$B$42,'Entry Cr&Dr'!$D$43,"") ->  | R42: =IF(R2=$B$42,'Entry Cr&Dr'!$D$43,"") ->  | S42: =IF(S2=$B$42,'Entry Cr&Dr'!$D$43,"") ->  | T42: =IF(T2=$B$42,'Entry Cr&Dr'!$D$43,"") ->  | U42: =IF(U2=$B$42,'Entry Cr&Dr'!$D$43,"") ->  | V42: =IF(V2=$B$42,'Entry Cr&Dr'!$D$43,"") -> 
A43: =IF('Entry Cr&Dr'!A44="","",'Entry Cr&Dr'!A44) -> 2020-08-09 | B43: =IF('Entry Cr&Dr'!B44="","",'Entry Cr&Dr'!B44) ->  | C43: =IF('Entry Cr&Dr'!C44="","",'Entry Cr&Dr'!C44) ->  | D43: =IF(D2=$B$43,'Entry Cr&Dr'!$D$44,"") ->  | E43: =IF(E2=$B$43,'Entry Cr&Dr'!$D$44,"") ->  | F43: =IF(F2=$B$43,'Entry Cr&Dr'!$D$44,"") ->  | G43: =IF(G2=$B$43,'Entry Cr&Dr'!$D$44,"") ->  | H43: =IF(H2=$B$43,'Entry Cr&Dr'!$D$44,"") ->  | I43: =IF(I2=$B$43,'Entry Cr&Dr'!$D$44,"") ->  | J43: =IF(J2=$B$43,'Entry Cr&Dr'!$D$44,"") ->  | K43: =IF(K2=$B$43,'Entry Cr&Dr'!$D$44,"") ->  | L43: =IF(L2=$B$43,'Entry Cr&Dr'!$D$44,"") ->  | M43: =IF(M2=$B$43,'Entry Cr&Dr'!$D$44,"") ->  | N43: =IF(N2=$B$43,'Entry Cr&Dr'!$D$44,"") ->  | O43: =IF(O2=$B$43,'Entry Cr&Dr'!$D$44,"") ->  | P43: =IF(P2=$B$43,'Entry Cr&Dr'!$D$44,"") ->  | Q43: =IF(Q2=$B$43,'Entry Cr&Dr'!$D$44,"") ->  | R43: =IF(R2=$B$43,'Entry Cr&Dr'!$D$44,"") ->  | S43: =IF(S2=$B$43,'Entry Cr&Dr'!$D$44,"") ->  | T43: =IF(T2=$B$43,'Entry Cr&Dr'!$D$44,"") ->  | U43: =IF(U2=$B$43,'Entry Cr&Dr'!$D$44,"") ->  | V43: =IF(V2=$B$43,'Entry Cr&Dr'!$D$44,"") -> 
A44: =IF('Entry Cr&Dr'!A45="","",'Entry Cr&Dr'!A45) -> 2020-08-10 | B44: =IF('Entry Cr&Dr'!B45="","",'Entry Cr&Dr'!B45) ->  | C44: =IF('Entry Cr&Dr'!C45="","",'Entry Cr&Dr'!C45) ->  | D44: =IF(D2=$B$44,'Entry Cr&Dr'!$D$45,"") ->  | E44: =IF(E2=$B$44,'Entry Cr&Dr'!$D$45,"") ->  | F44: =IF(F2=$B$44,'Entry Cr&Dr'!$D$45,"") ->  | G44: =IF(G2=$B$44,'Entry Cr&Dr'!$D$45,"") ->  | H44: =IF(H2=$B$44,'Entry Cr&Dr'!$D$45,"") ->  | I44: =IF(I2=$B$44,'Entry Cr&Dr'!$D$45,"") ->  | J44: =IF(J2=$B$44,'Entry Cr&Dr'!$D$45,"") ->  | K44: =IF(K2=$B$44,'Entry Cr&Dr'!$D$45,"") ->  | L44: =IF(L2=$B$44,'Entry Cr&Dr'!$D$45,"") ->  | M44: =IF(M2=$B$44,'Entry Cr&Dr'!$D$45,"") ->  | N44: =IF(N2=$B$44,'Entry Cr&Dr'!$D$45,"") ->  | O44: =IF(O2=$B$44,'Entry Cr&Dr'!$D$45,"") ->  | P44: =IF(P2=$B$44,'Entry Cr&Dr'!$D$45,"") ->  | Q44: =IF(Q2=$B$44,'Entry Cr&Dr'!$D$45,"") ->  | R44: =IF(R2=$B$44,'Entry Cr&Dr'!$D$45,"") ->  | S44: =IF(S2=$B$44,'Entry Cr&Dr'!$D$45,"") ->  | T44: =IF(T2=$B$44,'Entry Cr&Dr'!$D$45,"") ->  | U44: =IF(U2=$B$44,'Entry Cr&Dr'!$D$45,"") ->  | V44: =IF(V2=$B$44,'Entry Cr&Dr'!$D$45,"") -> 
A48: योग | D48: =SUM(D3:D44) -> 50000.00 | E48: =SUM(E3:E44) -> 15226.40 | F48: 500.00 | G48: 3252.00 | H48: 60663.42 | I48: 3600.00 | J48: 7150.00 | K48: 20740.00 | L48: 10000.00 | M48: 0.00 | N48: 0.00 | O48: 0.00 | P48: 0.00 | Q48: 0.00 | R48: 0.00 | S48: 0.00 | T48: 3526.00 | U48: 0.00 | V48: 32824.72 | W48: =SUM(D48:V48,X48) -> 213032.54 | X48: =SUM(X3:X44) -> 5550.00 | Y48: =IFERROR(IF(W48-X48=0,"",W48-X48),"") -> 207482.54

Sheet Payment
A1: Payment
A2: दिनाक | B2: मद जिससे राशि गई | C2: किसको दिया का विवरण | D2: CSG | E2: Vikas Kosh | F2: FVC | G2: Internet | H2: Gas Subcidy, MDM, Cook-Cum Helper | I2: Scholarship | J2: Scout Guide | K2: Cycle and Transport Voucher | L2: Science | M2: SMC Training | N2: Bhawan Nirman | O2: School Repairing | P2: Lab | Q2: Liberary | R2: Electricty/Water Bill | S2: Game related | T2: Other1 | U2: Other2 | V2: Bank Interest | W2: योग | X2: Cash | Y2: बैंक
A3: =IF('Entry Cr&Dr'!G5="","",'Entry Cr&Dr'!G5) -> 2020-07-01 | B3: =IF('Entry Cr&Dr'!H5="","",'Entry Cr&Dr'!H5) -> Gas Subcidy, MDM, Cook-Cum Helper | C3: =IF('Entry Cr&Dr'!I5="","",'Entry Cr&Dr'!I5) -> toshina mahila ko cheque dwara bhugtan | D3: =IF(D2=$B$3,'Entry Cr&Dr'!$J$5,"") ->  | E3: =IF(E2=$B$3,'Entry Cr&Dr'!$J$5,"") ->  | F3: =IF(F2=$B$3,'Entry Cr&Dr'!$J$5,"") ->  | G3: =IF(G2=$B$3,'Entry Cr&Dr'!$J$5,"") ->  | H3: =IF(H2=$B$3,'Entry Cr&Dr'!$J$5,"") -> 16944.00 | I3: =IF(I2=$B$3,'Entry Cr&Dr'!$J$5,"") ->  | J3: =IF(J2=$B$3,'Entry Cr&Dr'!$J$5,"") ->  | K3: =IF(K2=$B$3,'Entry Cr&Dr'!$J$5,"") ->  | L3: =IF(L2=$B$3,'Entry Cr&Dr'!$J$5,"") ->  | M3: =IF(M2=$B$3,'Entry Cr&Dr'!$J$5,"") ->  | N3: =IF(N2=$B$3,'Entry Cr&Dr'!$J$5,"") ->  | O3: =IF(O2=$B$3,'Entry Cr&Dr'!$J$5,"") ->  | P3: =IF(P2=$B$3,'Entry Cr&Dr'!$J$5,"") ->  | Q3: =IF(Q2=$B$3,'Entry Cr&Dr'!$J$5,"") ->  | R3: =IF(R2=$B$3,'Entry Cr&Dr'!$J$5,"") ->  | S3: =IF(S2=$B$3,'Entry Cr&Dr'!$J$5,"") ->  | T3: =IF(T2=$B$3,'Entry Cr&Dr'!$J$5,"") ->  | U3: =IF(U2=$B$3,'Entry Cr&Dr'!$J$5,"") ->  | V3: =IF(V2=$B$3,'Entry Cr&Dr'!$J$5,"") ->  | W3: =IF(SUM(D3:V3)=0,"",SUM(D3:V3)) -> 16944.00 | Y3: =IFERROR(IF(W3-X3=0,"",W3-X3),"") -> 16944.00 | AA3: इस शीट में केवल cash वाले कोलम में एंट्री करे जिस राशि का पेमेंट आपने कैश में दिया है उसका इन्द्राज cash वाले कोलम में करे |बाकी अन्य किसी भी कोलम में एंट्री करने की आवश्यकता नही है | आसमानी कलर वाले कोलम में मद समान होने चाहिए |
A4: =IF('Entry Cr&Dr'!G6="","",'Entry Cr&Dr'!G6) -> 2020-07-02 | B4: =IF('Entry Cr&Dr'!H6="","",'Entry Cr&Dr'!H6) -> Gas Subcidy, MDM, Cook-Cum Helper | C4: =IF('Entry Cr&Dr'!I6="","",'Entry Cr&Dr'!I6) -> sri banwari ko cheque dwara bhugtan | D4: =IF(D2=$B$4,'Entry Cr&Dr'!$J$6,"") ->  | E4: =IF(E2=$B$4,'Entry Cr&Dr'!$J$6,"") ->  | F4: =IF(F2=$B$4,'Entry Cr&Dr'!$J$6,"") ->  | G4: =IF(G2=$B$4,'Entry Cr&Dr'!$J$6,"") ->  | H4: =IF(H2=$B$4,'Entry Cr&Dr'!$J$6,"") -> 1965.00 | I4: =IF(I2=$B$4,'Entry Cr&Dr'!$J$6,"") ->  | J4: =IF(J2=$B$4,'Entry Cr&Dr'!$J$6,"") ->  | K4: =IF(K2=$B$4,'Entry Cr&Dr'!$J$6,"") ->  | L4: =IF(L2=$B$4,'Entry Cr&Dr'!$J$6,"") ->  | M4: =IF(M2=$B$4,'Entry Cr&Dr'!$J$6,"") ->  | N4: =IF(N2=$B$4,'Entry Cr&Dr'!$J$6,"") ->  | O4: =IF(O2=$B$4,'Entry Cr&Dr'!$J$6,"") ->  | P4: =IF(P2=$B$4,'Entry Cr&Dr'!$J$6,"") ->  | Q4: =IF(Q2=$B$4,'Entry Cr&Dr'!$J$6,"") ->  | R4: =IF(R2=$B$4,'Entry Cr&Dr'!$J$6,"") ->  | S4: =IF(S2=$B$4,'Entry Cr&Dr'!$J$6,"") ->  | T4: =IF(T2=$B$4,'Entry Cr&Dr'!$J$6,"") ->  | U4: =IF(U2=$B$4,'Entry Cr&Dr'!$J$6,"") ->  | V4: =IF(V2=$B$4,'Entry Cr&Dr'!$J$6,"") ->  | W4: =IF(SUM(D4:V4)=0,"",SUM(D4:V4)) -> 1965.00 | Y4: =IFERROR(IF(W4-X4=0,"",W4-X4),"") -> 1965.00
A5: =IF('Entry Cr&Dr'!G7="","",'Entry Cr&Dr'!G7) -> 2020-07-03 | B5: =IF('Entry Cr&Dr'!H7="","",'Entry Cr&Dr'!H7) -> Gas Subcidy, MDM, Cook-Cum Helper | C5: =IF('Entry Cr&Dr'!I7="","",'Entry Cr&Dr'!I7) -> ashok kumar fal sabji | D5: =IF(D2=$B$5,'Entry Cr&Dr'!$J$7,"") ->  | E5: =IF(E2=$B$5,'Entry Cr&Dr'!$J$7,"") ->  | F5: =IF(F2=$B$5,'Entry Cr&Dr'!$J$7,"") ->  | G5: =IF(G2=$B$5,'Entry Cr&Dr'!$J$7,"") ->  | H5: =IF(H2=$B$5,'Entry Cr&Dr'!$J$7,"") -> 12579.00 | I5: =IF(I2=$B$5,'Entry Cr&Dr'!$J$7,"") ->  | J5: =IF(J2=$B$5,'Entry Cr&Dr'!$J$7,"") ->  | K5: =IF(K2=$B$5,'Entry Cr&Dr'!$J$7,"") ->  | L5: =IF(L2=$B$5,'Entry Cr&Dr'!$J$7,"") ->  | M5: =IF(M2=$B$5,'Entry Cr&Dr'!$J$7,"") ->  | N5: =IF(N2=$B$5,'Entry Cr&Dr'!$J$7,"") ->  | O5: =IF(O2=$B$5,'Entry Cr&Dr'!$J$7,"") ->  | P5: =IF(P2=$B$5,'Entry Cr&Dr'!$J$7,"") ->  | Q5: =IF(Q2=$B$5,'Entry Cr&Dr'!$J$7,"") ->  | R5: =IF(R2=$B$5,'Entry Cr&Dr'!$J$7,"") ->  | S5: =IF(S2=$B$5,'Entry Cr&Dr'!$J$7,"") ->  | T5: =IF(T2=$B$5,'Entry Cr&Dr'!$J$7,"") ->  | U5: =IF(U2=$B$5,'Entry Cr&Dr'!$J$7,"") ->  | V5: =IF(V2=$B$5,'Entry Cr&Dr'!$J$7,"") ->  | W5: 12579.00 | Y5: 12579.00
A6: =IF('Entry Cr&Dr'!G8="","",'Entry Cr&Dr'!G8) -> 2020-07-04 | B6: =IF('Entry Cr&Dr'!H8="","",'Entry Cr&Dr'!H8) -> Gas Subcidy, MDM, Cook-Cum Helper | C6: =IF('Entry Cr&Dr'!I8="","",'Entry Cr&Dr'!I8) -> jeewan ram jhala kirana | D6: =IF(D2=$B$6,'Entry Cr&Dr'!$J$8,"") ->  | E6: =IF(E2=$B$6,'Entry Cr&Dr'!$J$8,"") ->  | F6: =IF(F2=$B$6,'Entry Cr&Dr'!$J$8,"") ->  | G6: =IF(G2=$B$6,'Entry Cr&Dr'!$J$8,"") ->  | H6: =IF(H2=$B$6,'Entry Cr&Dr'!$J$8,"") -> 19057.00 | I6: =IF(I2=$B$6,'Entry Cr&Dr'!$J$8,"") ->  | J6: =IF(J2=$B$6,'Entry Cr&Dr'!$J$8,"") ->  | K6: =IF(K2=$B$6,'Entry Cr&Dr'!$J$8,"") ->  | L6: =IF(L2=$B$6,'Entry Cr&Dr'!$J$8,"") ->  | M6: =IF(M2=$B$6,'Entry Cr&Dr'!$J$8,"") ->  | N6: =IF(N2=$B$6,'Entry Cr&Dr'!$J$8,"") ->  | O6: =IF(O2=$B$6,'Entry Cr&Dr'!$J$8,"") ->  | P6: =IF(P2=$B$6,'Entry Cr&Dr'!$J$8,"") ->  | Q6: =IF(Q2=$B$6,'Entry Cr&Dr'!$J$8,"") ->  | R6: =IF(R2=$B$6,'Entry Cr&Dr'!$J$8,"") ->  | S6: =IF(S2=$B$6,'Entry Cr&Dr'!$J$8,"") ->  | T6: =IF(T2=$B$6,'Entry Cr&Dr'!$J$8,"") ->  | U6: =IF(U2=$B$6,'Entry Cr&Dr'!$J$8,"") ->  | V6: =IF(V2=$B$6,'Entry Cr&Dr'!$J$8,"") ->  | W6: 19057.00 | Y6: 19057.00
A7: =IF('Entry Cr&Dr'!G9="","",'Entry Cr&Dr'!G9) -> 2020-07-05 | B7: =IF('Entry Cr&Dr'!H9="","",'Entry Cr&Dr'!H9) ->  | C7: =IF('Entry Cr&Dr'!I9="","",'Entry Cr&Dr'!I9) ->  | D7: =IF(D2=$B$7,'Entry Cr&Dr'!$J$9,"") ->  | E7: =IF(E2=$B$7,'Entry Cr&Dr'!$J$9,"") ->  | F7: =IF(F2=$B$7,'Entry Cr&Dr'!$J$9,"") ->  | G7: =IF(G2=$B$7,'Entry Cr&Dr'!$J$9,"") ->  | H7: =IF(H2=$B$7,'Entry Cr&Dr'!$J$9,"") ->  | I7: =IF(I2=$B$7,'Entry Cr&Dr'!$J$9,"") ->  | J7: =IF(J2=$B$7,'Entry Cr&Dr'!$J$9,"") ->  | K7: =IF(K2=$B$7,'Entry Cr&Dr'!$J$9,"") ->  | L7: =IF(L2=$B$7,'Entry Cr&Dr'!$J$9,"") ->  | M7: =IF(M2=$B$7,'Entry Cr&Dr'!$J$9,"") ->  | N7: =IF(N2=$B$7,'Entry Cr&Dr'!$J$9,"") ->  | O7: =IF(O2=$B$7,'Entry Cr&Dr'!$J$9,"") ->  | P7: =IF(P2=$B$7,'Entry Cr&Dr'!$J$9,"") ->  | Q7: =IF(Q2=$B$7,'Entry Cr&Dr'!$J$9,"") ->  | R7: =IF(R2=$B$7,'Entry Cr&Dr'!$J$9,"") ->  | S7: =IF(S2=$B$7,'Entry Cr&Dr'!$J$9,"") ->  | T7: =IF(T2=$B$7,'Entry Cr&Dr'!$J$9,"") ->  | U7: =IF(U2=$B$7,'Entry Cr&Dr'!$J$9,"") ->  | V7: =IF(V2=$B$7,'Entry Cr&Dr'!$J$9,"") -> 
A8: =IF('Entry Cr&Dr'!G10="","",'Entry Cr&Dr'!G10) -> 2020-07-06 | B8: =IF('Entry Cr&Dr'!H10="","",'Entry Cr&Dr'!H10) ->  | C8: =IF('Entry Cr&Dr'!I10="","",'Entry Cr&Dr'!I10) ->  | D8: =IF(D2=$B$8,'Entry Cr&Dr'!$J$10,"") ->  | E8: =IF(E2=$B$8,'Entry Cr&Dr'!$J$10,"") ->  | F8: =IF(F2=$B$8,'Entry Cr&Dr'!$J$10,"") ->  | G8: =IF(G2=$B$8,'Entry Cr&Dr'!$J$10,"") ->  | H8: =IF(H2=$B$8,'Entry Cr&Dr'!$J$10,"") ->  | I8: =IF(I2=$B$8,'Entry Cr&Dr'!$J$10,"") ->  | J8: =IF(J2=$B$8,'Entry Cr&Dr'!$J$10,"") ->  | K8: =IF(K2=$B$8,'Entry Cr&Dr'!$J$10,"") ->  | L8: =IF(L2=$B$8,'Entry Cr&Dr'!$J$10,"") ->  | M8: =IF(M2=$B$8,'Entry Cr&Dr'!$J$10,"") ->  | N8: =IF(N2=$B$8,'Entry Cr&Dr'!$J$10,"") ->  | O8: =IF(O2=$B$8,'Entry Cr&Dr'!$J$10,"") ->  | P8: =IF(P2=$B$8,'Entry Cr&Dr'!$J$10,"") ->  | Q8: =IF(Q2=$B$8,'Entry Cr&Dr'!$J$10,"") ->  | R8: =IF(R2=$B$8,'Entry Cr&Dr'!$J$10,"") ->  | S8: =IF(S2=$B$8,'Entry Cr&Dr'!$J$10,"") ->  | T8: =IF(T2=$B$8,'Entry Cr&Dr'!$J$10,"") ->  | U8: =IF(U2=$B$8,'Entry Cr&Dr'!$J$10,"") ->  | V8: =IF(V2=$B$8,'Entry Cr&Dr'!$J$10,"") -> 
A9: =IF('Entry Cr&Dr'!G11="","",'Entry Cr&Dr'!G11) -> 2020-07-07 | B9: =IF('Entry Cr&Dr'!H11="","",'Entry Cr&Dr'!H11) ->  | C9: =IF('Entry Cr&Dr'!I11="","",'Entry Cr&Dr'!I11) ->  | D9: =IF(D2=$B$9,'Entry Cr&Dr'!$J$11,"") ->  | E9: =IF(E2=$B$9,'Entry Cr&Dr'!$J$11,"") ->  | F9: =IF(F2=$B$9,'Entry Cr&Dr'!$J$11,"") ->  | G9: =IF(G2=$B$9,'Entry Cr&Dr'!$J$11,"") ->  | H9: =IF(H2=$B$9,'Entry Cr&Dr'!$J$11,"") ->  | I9: =IF(I2=$B$9,'Entry Cr&Dr'!$J$11,"") ->  | J9: =IF(J2=$B$9,'Entry Cr&Dr'!$J$11,"") ->  | K9: =IF(K2=$B$9,'Entry Cr&Dr'!$J$11,"") ->  | L9: =IF(L2=$B$9,'Entry Cr&Dr'!$J$11,"") ->  | M9: =IF(M2=$B$9,'Entry Cr&Dr'!$J$11,"") ->  | N9: =IF(N2=$B$9,'Entry Cr&Dr'!$J$11,"") ->  | O9: =IF(O2=$B$9,'Entry Cr&Dr'!$J$11,"") ->  | P9: =IF(P2=$B$9,'Entry Cr&Dr'!$J$11,"") ->  | Q9: =IF(Q2=$B$9,'Entry Cr&Dr'!$J$11,"") ->  | R9: =IF(R2=$B$9,'Entry Cr&Dr'!$J$11,"") ->  | S9: =IF(S2=$B$9,'Entry Cr&Dr'!$J$11,"") ->  | T9: =IF(T2=$B$9,'Entry Cr&Dr'!$J$11,"") ->  | U9: =IF(U2=$B$9,'Entry Cr&Dr'!$J$11,"") ->  | V9: =IF(V2=$B$9,'Entry Cr&Dr'!$J$11,"") ->  | AA9: Click Here to check ENTRY
A10: =IF('Entry Cr&Dr'!G12="","",'Entry Cr&Dr'!G12) -> 2020-07-08 | B10: =IF('Entry Cr&Dr'!H12="","",'Entry Cr&Dr'!H12) ->  | C10: =IF('Entry Cr&Dr'!I12="","",'Entry Cr&Dr'!I12) ->  | D10: =IF(D2=$B$10,'Entry Cr&Dr'!$J$12,"") ->  | E10: =IF(E2=$B$10,'Entry Cr&Dr'!$J$12,"") ->  | F10: =IF(F2=$B$10,'Entry Cr&Dr'!$J$12,"") ->  | G10: =IF(G2=$B$10,'Entry Cr&Dr'!$J$12,"") ->  | H10: =IF(H2=$B$10,'Entry Cr&Dr'!$J$12,"") ->  | I10: =IF(I2=$B$10,'Entry Cr&Dr'!$J$12,"") ->  | J10: =IF(J2=$B$10,'Entry Cr&Dr'!$J$12,"") ->  | K10: =IF(K2=$B$10,'Entry Cr&Dr'!$J$12,"") ->  | L10: =IF(L2=$B$10,'Entry Cr&Dr'!$J$12,"") ->  | M10: =IF(M2=$B$10,'Entry Cr&Dr'!$J$12,"") ->  | N10: =IF(N2=$B$10,'Entry Cr&Dr'!$J$12,"") ->  | O10: =IF(O2=$B$10,'Entry Cr&Dr'!$J$12,"") ->  | P10: =IF(P2=$B$10,'Entry Cr&Dr'!$J$12,"") ->  | Q10: =IF(Q2=$B$10,'Entry Cr&Dr'!$J$12,"") ->  | R10: =IF(R2=$B$10,'Entry Cr&Dr'!$J$12,"") ->  | S10: =IF(S2=$B$10,'Entry Cr&Dr'!$J$12,"") ->  | T10: =IF(T2=$B$10,'Entry Cr&Dr'!$J$12,"") ->  | U10: =IF(U2=$B$10,'Entry Cr&Dr'!$J$12,"") ->  | V10: =IF(V2=$B$10,'Entry Cr&Dr'!$J$12,"") -> 
A11: =IF('Entry Cr&Dr'!G13="","",'Entry Cr&Dr'!G13) -> 2020-07-09 | B11: =IF('Entry Cr&Dr'!H13="","",'Entry Cr&Dr'!H13) ->  | C11: =IF('Entry Cr&Dr'!I13="","",'Entry Cr&Dr'!I13) ->  | D11: =IF(D2=$B$11,'Entry Cr&Dr'!$J$13,"") ->  | E11: =IF(E2=$B$11,'Entry Cr&Dr'!$J$13,"") ->  | F11: =IF(F2=$B$11,'Entry Cr&Dr'!$J$13,"") ->  | G11: =IF(G2=$B$11,'Entry Cr&Dr'!$J$13,"") ->  | H11: =IF(H2=$B$11,'Entry Cr&Dr'!$J$13,"") ->  | I11: =IF(I2=$B$11,'Entry Cr&Dr'!$J$13,"") ->  | J11: =IF(J2=$B$11,'Entry Cr&Dr'!$J$13,"") ->  | K11: =IF(K2=$B$11,'Entry Cr&Dr'!$J$13,"") ->  | L11: =IF(L2=$B$11,'Entry Cr&Dr'!$J$13,"") ->  | M11: =IF(M2=$B$11,'Entry Cr&Dr'!$J$13,"") ->  | N11: =IF(N2=$B$11,'Entry Cr&Dr'!$J$13,"") ->  | O11: =IF(O2=$B$11,'Entry Cr&Dr'!$J$13,"") ->  | P11: =IF(P2=$B$11,'Entry Cr&Dr'!$J$13,"") ->  | Q11: =IF(Q2=$B$11,'Entry Cr&Dr'!$J$13,"") ->  | R11: =IF(R2=$B$11,'Entry Cr&Dr'!$J$13,"") ->  | S11: =IF(S2=$B$11,'Entry Cr&Dr'!$J$13,"") ->  | T11: =IF(T2=$B$11,'Entry Cr&Dr'!$J$13,"") ->  | U11: =IF(U2=$B$11,'Entry Cr&Dr'!$J$13,"") ->  | V11: =IF(V2=$B$11,'Entry Cr&Dr'!$J$13,"") -> 
A12: =IF('Entry Cr&Dr'!G14="","",'Entry Cr&Dr'!G14) -> 2020-07-10 | B12: =IF('Entry Cr&Dr'!H14="","",'Entry Cr&Dr'!H14) ->  | C12: =IF('Entry Cr&Dr'!I14="","",'Entry Cr&Dr'!I14) ->  | D12: =IF(D2=$B$12,'Entry Cr&Dr'!$J$14,"") ->  | E12: =IF(E2=$B$12,'Entry Cr&Dr'!$J$14,"") ->  | F12: =IF(F2=$B$12,'Entry Cr&Dr'!$J$14,"") ->  | G12: =IF(G2=$B$12,'Entry Cr&Dr'!$J$14,"") ->  | H12: =IF(H2=$B$12,'Entry Cr&Dr'!$J$14,"") ->  | I12: =IF(I2=$B$12,'Entry Cr&Dr'!$J$14,"") ->  | J12: =IF(J2=$B$12,'Entry Cr&Dr'!$J$14,"") ->  | K12: =IF(K2=$B$12,'Entry Cr&Dr'!$J$14,"") ->  | L12: =IF(L2=$B$12,'Entry Cr&Dr'!$J$14,"") ->  | M12: =IF(M2=$B$12,'Entry Cr&Dr'!$J$14,"") ->  | N12: =IF(N2=$B$12,'Entry Cr&Dr'!$J$14,"") ->  | O12: =IF(O2=$B$12,'Entry Cr&Dr'!$J$14,"") ->  | P12: =IF(P2=$B$12,'Entry Cr&Dr'!$J$14,"") ->  | Q12: =IF(Q2=$B$12,'Entry Cr&Dr'!$J$14,"") ->  | R12: =IF(R2=$B$12,'Entry Cr&Dr'!$J$14,"") ->  | S12: =IF(S2=$B$12,'Entry Cr&Dr'!$J$14,"") ->  | T12: =IF(T2=$B$12,'Entry Cr&Dr'!$J$14,"") ->  | U12: =IF(U2=$B$12,'Entry Cr&Dr'!$J$14,"") ->  | V12: =IF(V2=$B$12,'Entry Cr&Dr'!$J$14,"") -> 
A13: =IF('Entry Cr&Dr'!G15="","",'Entry Cr&Dr'!G15) -> 2020-07-11 | B13: =IF('Entry Cr&Dr'!H15="","",'Entry Cr&Dr'!H15) ->  | C13: =IF('Entry Cr&Dr'!I15="","",'Entry Cr&Dr'!I15) ->  | D13: =IF(D2=$B$13,'Entry Cr&Dr'!$J$15,"") ->  | E13: =IF(E2=$B$13,'Entry Cr&Dr'!$J$15,"") ->  | F13: =IF(F2=$B$13,'Entry Cr&Dr'!$J$15,"") ->  | G13: =IF(G2=$B$13,'Entry Cr&Dr'!$J$15,"") ->  | H13: =IF(H2=$B$13,'Entry Cr&Dr'!$J$15,"") ->  | I13: =IF(I2=$B$13,'Entry Cr&Dr'!$J$15,"") ->  | J13: =IF(J2=$B$13,'Entry Cr&Dr'!$J$15,"") ->  | K13: =IF(K2=$B$13,'Entry Cr&Dr'!$J$15,"") ->  | L13: =IF(L2=$B$13,'Entry Cr&Dr'!$J$15,"") ->  | M13: =IF(M2=$B$13,'Entry Cr&Dr'!$J$15,"") ->  | N13: =IF(N2=$B$13,'Entry Cr&Dr'!$J$15,"") ->  | O13: =IF(O2=$B$13,'Entry Cr&Dr'!$J$15,"") ->  | P13: =IF(P2=$B$13,'Entry Cr&Dr'!$J$15,"") ->  | Q13: =IF(Q2=$B$13,'Entry Cr&Dr'!$J$15,"") ->  | R13: =IF(R2=$B$13,'Entry Cr&Dr'!$J$15,"") ->  | S13: =IF(S2=$B$13,'Entry Cr&Dr'!$J$15,"") ->  | T13: =IF(T2=$B$13,'Entry Cr&Dr'!$J$15,"") ->  | U13: =IF(U2=$B$13,'Entry Cr&Dr'!$J$15,"") ->  | V13: =IF(V2=$B$13,'Entry Cr&Dr'!$J$15,"") -> 
A14: =IF('Entry Cr&Dr'!G16="","",'Entry Cr&Dr'!G16) -> 2020-07-12 | B14: =IF('Entry Cr&Dr'!H16="","",'Entry Cr&Dr'!H16) ->  | C14: =IF('Entry Cr&Dr'!I16="","",'Entry Cr&Dr'!I16) ->  | D14: =IF(D2=$B$14,'Entry Cr&Dr'!$J$16,"") ->  | E14: =IF(E2=$B$14,'Entry Cr&Dr'!$J$16,"") ->  | F14: =IF(F2=$B$14,'Entry Cr&Dr'!$J$16,"") ->  | G14: =IF(G2=$B$14,'Entry Cr&Dr'!$J$16,"") ->  | H14: =IF(H2=$B$14,'Entry Cr&Dr'!$J$16,"") ->  | I14: =IF(I2=$B$14,'Entry Cr&Dr'!$J$16,"") ->  | J14: =IF(J2=$B$14,'Entry Cr&Dr'!$J$16,"") ->  | K14: =IF(K2=$B$14,'Entry Cr&Dr'!$J$16,"") ->  | L14: =IF(L2=$B$14,'Entry Cr&Dr'!$J$16,"") ->  | M14: =IF(M2=$B$14,'Entry Cr&Dr'!$J$16,"") ->  | N14: =IF(N2=$B$14,'Entry Cr&Dr'!$J$16,"") ->  | O14: =IF(O2=$B$14,'Entry Cr&Dr'!$J$16,"") ->  | P14: =IF(P2=$B$14,'Entry Cr&Dr'!$J$16,"") ->  | Q14: =IF(Q2=$B$14,'Entry Cr&Dr'!$J$16,"") ->  | R14: =IF(R2=$B$14,'Entry Cr&Dr'!$J$16,"") ->  | S14: =IF(S2=$B$14,'Entry Cr&Dr'!$J$16,"") ->  | T14: =IF(T2=$B$14,'Entry Cr&Dr'!$J$16,"") ->  | U14: =IF(U2=$B$14,'Entry Cr&Dr'!$J$16,"") ->  | V14: =IF(V2=$B$14,'Entry Cr&Dr'!$J$16,"") -> 
A15: =IF('Entry Cr&Dr'!G17="","",'Entry Cr&Dr'!G17) -> 2020-07-13 | B15: =IF('Entry Cr&Dr'!H17="","",'Entry Cr&Dr'!H17) ->  | C15: =IF('Entry Cr&Dr'!I17="","",'Entry Cr&Dr'!I17) ->  | D15: =IF(D2=$B$15,'Entry Cr&Dr'!$J$17,"") ->  | E15: =IF(E2=$B$15,'Entry Cr&Dr'!$J$17,"") ->  | F15: =IF(F2=$B$15,'Entry Cr&Dr'!$J$17,"") ->  | G15: =IF(G2=$B$15,'Entry Cr&Dr'!$J$17,"") ->  | H15: =IF(H2=$B$15,'Entry Cr&Dr'!$J$17,"") ->  | I15: =IF(I2=$B$15,'Entry Cr&Dr'!$J$17,"") ->  | J15: =IF(J2=$B$15,'Entry Cr&Dr'!$J$17,"") ->  | K15: =IF(K2=$B$15,'Entry Cr&Dr'!$J$17,"") ->  | L15: =IF(L2=$B$15,'Entry Cr&Dr'!$J$17,"") ->  | M15: =IF(M2=$B$15,'Entry Cr&Dr'!$J$17,"") ->  | N15: =IF(N2=$B$15,'Entry Cr&Dr'!$J$17,"") ->  | O15: =IF(O2=$B$15,'Entry Cr&Dr'!$J$17,"") ->  | P15: =IF(P2=$B$15,'Entry Cr&Dr'!$J$17,"") ->  | Q15: =IF(Q2=$B$15,'Entry Cr&Dr'!$J$17,"") ->  | R15: =IF(R2=$B$15,'Entry Cr&Dr'!$J$17,"") ->  | S15: =IF(S2=$B$15,'Entry Cr&Dr'!$J$17,"") ->  | T15: =IF(T2=$B$15,'Entry Cr&Dr'!$J$17,"") ->  | U15: =IF(U2=$B$15,'Entry Cr&Dr'!$J$17,"") ->  | V15: =IF(V2=$B$15,'Entry Cr&Dr'!$J$17,"") -> 
A16: =IF('Entry Cr&Dr'!G18="","",'Entry Cr&Dr'!G18) -> 2020-07-14 | B16: =IF('Entry Cr&Dr'!H18="","",'Entry Cr&Dr'!H18) ->  | C16: =IF('Entry Cr&Dr'!I18="","",'Entry Cr&Dr'!I18) ->  | D16: =IF(D2=$B$16,'Entry Cr&Dr'!$J$18,"") ->  | E16: =IF(E2=$B$16,'Entry Cr&Dr'!$J$18,"") ->  | F16: =IF(F2=$B$16,'Entry Cr&Dr'!$J$18,"") ->  | G16: =IF(G2=$B$16,'Entry Cr&Dr'!$J$18,"") ->  | H16: =IF(H2=$B$16,'Entry Cr&Dr'!$J$18,"") ->  | I16: =IF(I2=$B$16,'Entry Cr&Dr'!$J$18,"") ->  | J16: =IF(J2=$B$16,'Entry Cr&Dr'!$J$18,"") ->  | K16: =IF(K2=$B$16,'Entry Cr&Dr'!$J$18,"") ->  | L16: =IF(L2=$B$16,'Entry Cr&Dr'!$J$18,"") ->  | M16: =IF(M2=$B$16,'Entry Cr&Dr'!$J$18,"") ->  | N16: =IF(N2=$B$16,'Entry Cr&Dr'!$J$18,"") ->  | O16: =IF(O2=$B$16,'Entry Cr&Dr'!$J$18,"") ->  | P16: =IF(P2=$B$16,'Entry Cr&Dr'!$J$18,"") ->  | Q16: =IF(Q2=$B$16,'Entry Cr&Dr'!$J$18,"") ->  | R16: =IF(R2=$B$16,'Entry Cr&Dr'!$J$18,"") ->  | S16: =IF(S2=$B$16,'Entry Cr&Dr'!$J$18,"") ->  | T16: =IF(T2=$B$16,'Entry Cr&Dr'!$J$18,"") ->  | U16: =IF(U2=$B$16,'Entry Cr&Dr'!$J$18,"") ->  | V16: =IF(V2=$B$16,'Entry Cr&Dr'!$J$18,"") -> 
A17: =IF('Entry Cr&Dr'!G19="","",'Entry Cr&Dr'!G19) -> 2020-07-15 | B17: =IF('Entry Cr&Dr'!H19="","",'Entry Cr&Dr'!H19) ->  | C17: =IF('Entry Cr&Dr'!I19="","",'Entry Cr&Dr'!I19) ->  | D17: =IF(D2=$B$17,'Entry Cr&Dr'!$J$19,"") ->  | E17: =IF(E2=$B$17,'Entry Cr&Dr'!$J$19,"") ->  | F17: =IF(F2=$B$17,'Entry Cr&Dr'!$J$19,"") ->  | G17: =IF(G2=$B$17,'Entry Cr&Dr'!$J$19,"") ->  | H17: =IF(H2=$B$17,'Entry Cr&Dr'!$J$19,"") ->  | I17: =IF(I2=$B$17,'Entry Cr&Dr'!$J$19,"") ->  | J17: =IF(J2=$B$17,'Entry Cr&Dr'!$J$19,"") ->  | K17: =IF(K2=$B$17,'Entry Cr&Dr'!$J$19,"") ->  | L17: =IF(L2=$B$17,'Entry Cr&Dr'!$J$19,"") ->  | M17: =IF(M2=$B$17,'Entry Cr&Dr'!$J$19,"") ->  | N17: =IF(N2=$B$17,'Entry Cr&Dr'!$J$19,"") ->  | O17: =IF(O2=$B$17,'Entry Cr&Dr'!$J$19,"") ->  | P17: =IF(P2=$B$17,'Entry Cr&Dr'!$J$19,"") ->  | Q17: =IF(Q2=$B$17,'Entry Cr&Dr'!$J$19,"") ->  | R17: =IF(R2=$B$17,'Entry Cr&Dr'!$J$19,"") ->  | S17: =IF(S2=$B$17,'Entry Cr&Dr'!$J$19,"") ->  | T17: =IF(T2=$B$17,'Entry Cr&Dr'!$J$19,"") ->  | U17: =IF(U2=$B$17,'Entry Cr&Dr'!$J$19,"") ->  | V17: =IF(V2=$B$17,'Entry Cr&Dr'!$J$19,"") -> 
A18: =IF('Entry Cr&Dr'!G20="","",'Entry Cr&Dr'!G20) -> 2020-07-16 | B18: =IF('Entry Cr&Dr'!H20="","",'Entry Cr&Dr'!H20) ->  | C18: =IF('Entry Cr&Dr'!I20="","",'Entry Cr&Dr'!I20) ->  | D18: =IF(D2=$B$18,'Entry Cr&Dr'!$J$20,"") ->  | E18: =IF(E2=$B$18,'Entry Cr&Dr'!$J$20,"") ->  | F18: =IF(F2=$B$18,'Entry Cr&Dr'!$J$20,"") ->  | G18: =IF(G2=$B$18,'Entry Cr&Dr'!$J$20,"") ->  | H18: =IF(H2=$B$18,'Entry Cr&Dr'!$J$20,"") ->  | I18: =IF(I2=$B$18,'Entry Cr&Dr'!$J$20,"") ->  | J18: =IF(J2=$B$18,'Entry Cr&Dr'!$J$20,"") ->  | K18: =IF(K2=$B$18,'Entry Cr&Dr'!$J$20,"") ->  | L18: =IF(L2=$B$18,'Entry Cr&Dr'!$J$20,"") ->  | M18: =IF(M2=$B$18,'Entry Cr&Dr'!$J$20,"") ->  | N18: =IF(N2=$B$18,'Entry Cr&Dr'!$J$20,"") ->  | O18: =IF(O2=$B$18,'Entry Cr&Dr'!$J$20,"") ->  | P18: =IF(P2=$B$18,'Entry Cr&Dr'!$J$20,"") ->  | Q18: =IF(Q2=$B$18,'Entry Cr&Dr'!$J$20,"") ->  | R18: =IF(R2=$B$18,'Entry Cr&Dr'!$J$20,"") ->  | S18: =IF(S2=$B$18,'Entry Cr&Dr'!$J$20,"") ->  | T18: =IF(T2=$B$18,'Entry Cr&Dr'!$J$20,"") ->  | U18: =IF(U2=$B$18,'Entry Cr&Dr'!$J$20,"") ->  | V18: =IF(V2=$B$18,'Entry Cr&Dr'!$J$20,"") -> 
A19: =IF('Entry Cr&Dr'!G21="","",'Entry Cr&Dr'!G21) -> 2020-07-17 | B19: =IF('Entry Cr&Dr'!H21="","",'Entry Cr&Dr'!H21) ->  | C19: =IF('Entry Cr&Dr'!I21="","",'Entry Cr&Dr'!I21) ->  | D19: =IF(D2=$B$19,'Entry Cr&Dr'!$J$21,"") ->  | E19: =IF(E2=$B$19,'Entry Cr&Dr'!$J$21,"") ->  | F19: =IF(F2=$B$19,'Entry Cr&Dr'!$J$21,"") ->  | G19: =IF(G2=$B$19,'Entry Cr&Dr'!$J$21,"") ->  | H19: =IF(H2=$B$19,'Entry Cr&Dr'!$J$21,"") ->  | I19: =IF(I2=$B$19,'Entry Cr&Dr'!$J$21,"") ->  | J19: =IF(J2=$B$19,'Entry Cr&Dr'!$J$21,"") ->  | K19: =IF(K2=$B$19,'Entry Cr&Dr'!$J$21,"") ->  | L19: =IF(L2=$B$19,'Entry Cr&Dr'!$J$21,"") ->  | M19: =IF(M2=$B$19,'Entry Cr&Dr'!$J$21,"") ->  | N19: =IF(N2=$B$19,'Entry Cr&Dr'!$J$21,"") ->  | O19: =IF(O2=$B$19,'Entry Cr&Dr'!$J$21,"") ->  | P19: =IF(P2=$B$19,'Entry Cr&Dr'!$J$21,"") ->  | Q19: =IF(Q2=$B$19,'Entry Cr&Dr'!$J$21,"") ->  | R19: =IF(R2=$B$19,'Entry Cr&Dr'!$J$21,"") ->  | S19: =IF(S2=$B$19,'Entry Cr&Dr'!$J$21,"") ->  | T19: =IF(T2=$B$19,'Entry Cr&Dr'!$J$21,"") ->  | U19: =IF(U2=$B$19,'Entry Cr&Dr'!$J$21,"") ->  | V19: =IF(V2=$B$19,'Entry Cr&Dr'!$J$21,"") -> 
A20: =IF('Entry Cr&Dr'!G22="","",'Entry Cr&Dr'!G22) -> 2020-07-18 | B20: =IF('Entry Cr&Dr'!H22="","",'Entry Cr&Dr'!H22) ->  | C20: =IF('Entry Cr&Dr'!I22="","",'Entry Cr&Dr'!I22) ->  | D20: =IF(D2=$B$20,'Entry Cr&Dr'!$J$22,"") ->  | E20: =IF(E2=$B$20,'Entry Cr&Dr'!$J$22,"") ->  | F20: =IF(F2=$B$20,'Entry Cr&Dr'!$J$22,"") ->  | G20: =IF(G2=$B$20,'Entry Cr&Dr'!$J$22,"") ->  | H20: =IF(H2=$B$20,'Entry Cr&Dr'!$J$22,"") ->  | I20: =IF(I2=$B$20,'Entry Cr&Dr'!$J$22,"") ->  | J20: =IF(J2=$B$20,'Entry Cr&Dr'!$J$22,"") ->  | K20: =IF(K2=$B$20,'Entry Cr&Dr'!$J$22,"") ->  | L20: =IF(L2=$B$20,'Entry Cr&Dr'!$J$22,"") ->  | M20: =IF(M2=$B$20,'Entry Cr&Dr'!$J$22,"") ->  | N20: =IF(N2=$B$20,'Entry Cr&Dr'!$J$22,"") ->  | O20: =IF(O2=$B$20,'Entry Cr&Dr'!$J$22,"") ->  | P20: =IF(P2=$B$20,'Entry Cr&Dr'!$J$22,"") ->  | Q20: =IF(Q2=$B$20,'Entry Cr&Dr'!$J$22,"") ->  | R20: =IF(R2=$B$20,'Entry Cr&Dr'!$J$22,"") ->  | S20: =IF(S2=$B$20,'Entry Cr&Dr'!$J$22,"") ->  | T20: =IF(T2=$B$20,'Entry Cr&Dr'!$J$22,"") ->  | U20: =IF(U2=$B$20,'Entry Cr&Dr'!$J$22,"") ->  | V20: =IF(V2=$B$20,'Entry Cr&Dr'!$J$22,"") -> 
A21: =IF('Entry Cr&Dr'!G23="","",'Entry Cr&Dr'!G23) -> 2020-07-19 | B21: =IF('Entry Cr&Dr'!H23="","",'Entry Cr&Dr'!H23) ->  | C21: =IF('Entry Cr&Dr'!I23="","",'Entry Cr&Dr'!I23) ->  | D21: =IF(D2=$B$21,'Entry Cr&Dr'!$J$23,"") ->  | E21: =IF(E2=$B$21,'Entry Cr&Dr'!$J$23,"") ->  | F21: =IF(F2=$B$21,'Entry Cr&Dr'!$J$23,"") ->  | G21: =IF(G2=$B$21,'Entry Cr&Dr'!$J$23,"") ->  | H21: =IF(H2=$B$21,'Entry Cr&Dr'!$J$23,"") ->  | I21: =IF(I2=$B$21,'Entry Cr&Dr'!$J$23,"") ->  | J21: =IF(J2=$B$21,'Entry Cr&Dr'!$J$23,"") ->  | K21: =IF(K2=$B$21,'Entry Cr&Dr'!$J$23,"") ->  | L21: =IF(L2=$B$21,'Entry Cr&Dr'!$J$23,"") ->  | M21: =IF(M2=$B$21,'Entry Cr&Dr'!$J$23,"") ->  | N21: =IF(N2=$B$21,'Entry Cr&Dr'!$J$23,"") ->  | O21: =IF(O2=$B$21,'Entry Cr&Dr'!$J$23,"") ->  | P21: =IF(P2=$B$21,'Entry Cr&Dr'!$J$23,"") ->  | Q21: =IF(Q2=$B$21,'Entry Cr&Dr'!$J$23,"") ->  | R21: =IF(R2=$B$21,'Entry Cr&Dr'!$J$23,"") ->  | S21: =IF(S2=$B$21,'Entry Cr&Dr'!$J$23,"") ->  | T21: =IF(T2=$B$21,'Entry Cr&Dr'!$J$23,"") ->  | U21: =IF(U2=$B$21,'Entry Cr&Dr'!$J$23,"") ->  | V21: =IF(V2=$B$21,'Entry Cr&Dr'!$J$23,"") -> 
A22: =IF('Entry Cr&Dr'!G24="","",'Entry Cr&Dr'!G24) -> 2020-07-20 | B22: =IF('Entry Cr&Dr'!H24="","",'Entry Cr&Dr'!H24) ->  | C22: =IF('Entry Cr&Dr'!I24="","",'Entry Cr&Dr'!I24) ->  | D22: =IF(D2=$B$22,'Entry Cr&Dr'!$J$24,"") ->  | E22: =IF(E2=$B$22,'Entry Cr&Dr'!$J$24,"") ->  | F22: =IF(F2=$B$22,'Entry Cr&Dr'!$J$24,"") ->  | G22: =IF(G2=$B$22,'Entry Cr&Dr'!$J$24,"") ->  | H22: =IF(H2=$B$22,'Entry Cr&Dr'!$J$24,"") ->  | I22: =IF(I2=$B$22,'Entry Cr&Dr'!$J$24,"") ->  | J22: =IF(J2=$B$22,'Entry Cr&Dr'!$J$24,"") ->  | K22: =IF(K2=$B$22,'Entry Cr&Dr'!$J$24,"") ->  | L22: =IF(L2=$B$22,'Entry Cr&Dr'!$J$24,"") ->  | M22: =IF(M2=$B$22,'Entry Cr&Dr'!$J$24,"") ->  | N22: =IF(N2=$B$22,'Entry Cr&Dr'!$J$24,"") ->  | O22: =IF(O2=$B$22,'Entry Cr&Dr'!$J$24,"") ->  | P22: =IF(P2=$B$22,'Entry Cr&Dr'!$J$24,"") ->  | Q22: =IF(Q2=$B$22,'Entry Cr&Dr'!$J$24,"") ->  | R22: =IF(R2=$B$22,'Entry Cr&Dr'!$J$24,"") ->  | S22: =IF(S2=$B$22,'Entry Cr&Dr'!$J$24,"") ->  | T22: =IF(T2=$B$22,'Entry Cr&Dr'!$J$24,"") ->  | U22: =IF(U2=$B$22,'Entry Cr&Dr'!$J$24,"") ->  | V22: =IF(V2=$B$22,'Entry Cr&Dr'!$J$24,"") -> 
A23: =IF('Entry Cr&Dr'!G25="","",'Entry Cr&Dr'!G25) -> 2020-07-21 | B23: =IF('Entry Cr&Dr'!H25="","",'Entry Cr&Dr'!H25) ->  | C23: =IF('Entry Cr&Dr'!I25="","",'Entry Cr&Dr'!I25) ->  | D23: =IF(D2=$B$23,'Entry Cr&Dr'!$J$25,"") ->  | E23: =IF(E2=$B$23,'Entry Cr&Dr'!$J$25,"") ->  | F23: =IF(F2=$B$23,'Entry Cr&Dr'!$J$25,"") ->  | G23: =IF(G2=$B$23,'Entry Cr&Dr'!$J$25,"") ->  | H23: =IF(H2=$B$23,'Entry Cr&Dr'!$J$25,"") ->  | I23: =IF(I2=$B$23,'Entry Cr&Dr'!$J$25,"") ->  | J23: =IF(J2=$B$23,'Entry Cr&Dr'!$J$25,"") ->  | K23: =IF(K2=$B$23,'Entry Cr&Dr'!$J$25,"") ->  | L23: =IF(L2=$B$23,'Entry Cr&Dr'!$J$25,"") ->  | M23: =IF(M2=$B$23,'Entry Cr&Dr'!$J$25,"") ->  | N23: =IF(N2=$B$23,'Entry Cr&Dr'!$J$25,"") ->  | O23: =IF(O2=$B$23,'Entry Cr&Dr'!$J$25,"") ->  | P23: =IF(P2=$B$23,'Entry Cr&Dr'!$J$25,"") ->  | Q23: =IF(Q2=$B$23,'Entry Cr&Dr'!$J$25,"") ->  | R23: =IF(R2=$B$23,'Entry Cr&Dr'!$J$25,"") ->  | S23: =IF(S2=$B$23,'Entry Cr&Dr'!$J$25,"") ->  | T23: =IF(T2=$B$23,'Entry Cr&Dr'!$J$25,"") ->  | U23: =IF(U2=$B$23,'Entry Cr&Dr'!$J$25,"") ->  | V23: =IF(V2=$B$23,'Entry Cr&Dr'!$J$25,"") -> 
A24: =IF('Entry Cr&Dr'!G26="","",'Entry Cr&Dr'!G26) -> 2020-07-22 | B24: =IF('Entry Cr&Dr'!H26="","",'Entry Cr&Dr'!H26) ->  | C24: =IF('Entry Cr&Dr'!I26="","",'Entry Cr&Dr'!I26) ->  | D24: =IF(D2=$B$24,'Entry Cr&Dr'!$J$26,"") ->  | E24: =IF(E2=$B$24,'Entry Cr&Dr'!$J$26,"") ->  | F24: =IF(F2=$B$24,'Entry Cr&Dr'!$J$26,"") ->  | G24: =IF(G2=$B$24,'Entry Cr&Dr'!$J$26,"") ->  | H24: =IF(H2=$B$24,'Entry Cr&Dr'!$J$26,"") ->  | I24: =IF(I2=$B$24,'Entry Cr&Dr'!$J$26,"") ->  | J24: =IF(J2=$B$24,'Entry Cr&Dr'!$J$26,"") ->  | K24: =IF(K2=$B$24,'Entry Cr&Dr'!$J$26,"") ->  | L24: =IF(L2=$B$24,'Entry Cr&Dr'!$J$26,"") ->  | M24: =IF(M2=$B$24,'Entry Cr&Dr'!$J$26,"") ->  | N24: =IF(N2=$B$24,'Entry Cr&Dr'!$J$26,"") ->  | O24: =IF(O2=$B$24,'Entry Cr&Dr'!$J$26,"") ->  | P24: =IF(P2=$B$24,'Entry Cr&Dr'!$J$26,"") ->  | Q24: =IF(Q2=$B$24,'Entry Cr&Dr'!$J$26,"") ->  | R24: =IF(R2=$B$24,'Entry Cr&Dr'!$J$26,"") ->  | S24: =IF(S2=$B$24,'Entry Cr&Dr'!$J$26,"") ->  | T24: =IF(T2=$B$24,'Entry Cr&Dr'!$J$26,"") ->  | U24: =IF(U2=$B$24,'Entry Cr&Dr'!$J$26,"") ->  | V24: =IF(V2=$B$24,'Entry Cr&Dr'!$J$26,"") -> 
A25: =IF('Entry Cr&Dr'!G27="","",'Entry Cr&Dr'!G27) -> 2020-07-23 | B25: =IF('Entry Cr&Dr'!H27="","",'Entry Cr&Dr'!H27) ->  | C25: =IF('Entry Cr&Dr'!I27="","",'Entry Cr&Dr'!I27) ->  | D25: =IF(D2=$B$25,'Entry Cr&Dr'!$J$27,"") ->  | E25: =IF(E2=$B$25,'Entry Cr&Dr'!$J$27,"") ->  | F25: =IF(F2=$B$25,'Entry Cr&Dr'!$J$27,"") ->  | G25: =IF(G2=$B$25,'Entry Cr&Dr'!$J$27,"") ->  | H25: =IF(H2=$B$25,'Entry Cr&Dr'!$J$27,"") ->  | I25: =IF(I2=$B$25,'Entry Cr&Dr'!$J$27,"") ->  | J25: =IF(J2=$B$25,'Entry Cr&Dr'!$J$27,"") ->  | K25: =IF(K2=$B$25,'Entry Cr&Dr'!$J$27,"") ->  | L25: =IF(L2=$B$25,'Entry Cr&Dr'!$J$27,"") ->  | M25: =IF(M2=$B$25,'Entry Cr&Dr'!$J$27,"") ->  | N25: =IF(N2=$B$25,'Entry Cr&Dr'!$J$27,"") ->  | O25: =IF(O2=$B$25,'Entry Cr&Dr'!$J$27,"") ->  | P25: =IF(P2=$B$25,'Entry Cr&Dr'!$J$27,"") ->  | Q25: =IF(Q2=$B$25,'Entry Cr&Dr'!$J$27,"") ->  | R25: =IF(R2=$B$25,'Entry Cr&Dr'!$J$27,"") ->  | S25: =IF(S2=$B$25,'Entry Cr&Dr'!$J$27,"") ->  | T25: =IF(T2=$B$25,'Entry Cr&Dr'!$J$27,"") ->  | U25: =IF(U2=$B$25,'Entry Cr&Dr'!$J$27,"") ->  | V25: =IF(V2=$B$25,'Entry Cr&Dr'!$J$27,"") -> 
A26: =IF('Entry Cr&Dr'!G28="","",'Entry Cr&Dr'!G28) -> 2020-07-24 | B26: =IF('Entry Cr&Dr'!H28="","",'Entry Cr&Dr'!H28) ->  | C26: =IF('Entry Cr&Dr'!I28="","",'Entry Cr&Dr'!I28) ->  | D26: =IF(D2=$B$26,'Entry Cr&Dr'!$J$28,"") ->  | E26: =IF(E2=$B$26,'Entry Cr&Dr'!$J$28,"") ->  | F26: =IF(F2=$B$26,'Entry Cr&Dr'!$J$28,"") ->  | G26: =IF(G2=$B$26,'Entry Cr&Dr'!$J$28,"") ->  | H26: =IF(H2=$B$26,'Entry Cr&Dr'!$J$28,"") ->  | I26: =IF(I2=$B$26,'Entry Cr&Dr'!$J$28,"") ->  | J26: =IF(J2=$B$26,'Entry Cr&Dr'!$J$28,"") ->  | K26: =IF(K2=$B$26,'Entry Cr&Dr'!$J$28,"") ->  | L26: =IF(L2=$B$26,'Entry Cr&Dr'!$J$28,"") ->  | M26: =IF(M2=$B$26,'Entry Cr&Dr'!$J$28,"") ->  | N26: =IF(N2=$B$26,'Entry Cr&Dr'!$J$28,"") ->  | O26: =IF(O2=$B$26,'Entry Cr&Dr'!$J$28,"") ->  | P26: =IF(P2=$B$26,'Entry Cr&Dr'!$J$28,"") ->  | Q26: =IF(Q2=$B$26,'Entry Cr&Dr'!$J$28,"") ->  | R26: =IF(R2=$B$26,'Entry Cr&Dr'!$J$28,"") ->  | S26: =IF(S2=$B$26,'Entry Cr&Dr'!$J$28,"") ->  | T26: =IF(T2=$B$26,'Entry Cr&Dr'!$J$28,"") ->  | U26: =IF(U2=$B$26,'Entry Cr&Dr'!$J$28,"") ->  | V26: =IF(V2=$B$26,'Entry Cr&Dr'!$J$28,"") -> 
A27: =IF('Entry Cr&Dr'!G29="","",'Entry Cr&Dr'!G29) -> 2020-07-25 | B27: =IF('Entry Cr&Dr'!H29="","",'Entry Cr&Dr'!H29) ->  | C27: =IF('Entry Cr&Dr'!I29="","",'Entry Cr&Dr'!I29) ->  | D27: =IF(D2=$B$27,'Entry Cr&Dr'!$J$29,"") ->  | E27: =IF(E2=$B$27,'Entry Cr&Dr'!$J$29,"") ->  | F27: =IF(F2=$B$27,'Entry Cr&Dr'!$J$29,"") ->  | G27: =IF(G2=$B$27,'Entry Cr&Dr'!$J$29,"") ->  | H27: =IF(H2=$B$27,'Entry Cr&Dr'!$J$29,"") ->  | I27: =IF(I2=$B$27,'Entry Cr&Dr'!$J$29,"") ->  | J27: =IF(J2=$B$27,'Entry Cr&Dr'!$J$29,"") ->  | K27: =IF(K2=$B$27,'Entry Cr&Dr'!$J$29,"") ->  | L27: =IF(L2=$B$27,'Entry Cr&Dr'!$J$29,"") ->  | M27: =IF(M2=$B$27,'Entry Cr&Dr'!$J$29,"") ->  | N27: =IF(N2=$B$27,'Entry Cr&Dr'!$J$29,"") ->  | O27: =IF(O2=$B$27,'Entry Cr&Dr'!$J$29,"") ->  | P27: =IF(P2=$B$27,'Entry Cr&Dr'!$J$29,"") ->  | Q27: =IF(Q2=$B$27,'Entry Cr&Dr'!$J$29,"") ->  | R27: =IF(R2=$B$27,'Entry Cr&Dr'!$J$29,"") ->  | S27: =IF(S2=$B$27,'Entry Cr&Dr'!$J$29,"") ->  | T27: =IF(T2=$B$27,'Entry Cr&Dr'!$J$29,"") ->  | U27: =IF(U2=$B$27,'Entry Cr&Dr'!$J$29,"") ->  | V27: =IF(V2=$B$27,'Entry Cr&Dr'!$J$29,"") -> 
A28: =IF('Entry Cr&Dr'!G30="","",'Entry Cr&Dr'!G30) -> 2020-07-26 | B28: =IF('Entry Cr&Dr'!H30="","",'Entry Cr&Dr'!H30) ->  | C28: =IF('Entry Cr&Dr'!I30="","",'Entry Cr&Dr'!I30) ->  | D28: =IF(D2=$B$28,'Entry Cr&Dr'!$J$30,"") ->  | E28: =IF(E2=$B$28,'Entry Cr&Dr'!$J$30,"") ->  | F28: =IF(F2=$B$28,'Entry Cr&Dr'!$J$30,"") ->  | G28: =IF(G2=$B$28,'Entry Cr&Dr'!$J$30,"") ->  | H28: =IF(H2=$B$28,'Entry Cr&Dr'!$J$30,"") ->  | I28: =IF(I2=$B$28,'Entry Cr&Dr'!$J$30,"") ->  | J28: =IF(J2=$B$28,'Entry Cr&Dr'!$J$30,"") ->  | K28: =IF(K2=$B$28,'Entry Cr&Dr'!$J$30,"") ->  | L28: =IF(L2=$B$28,'Entry Cr&Dr'!$J$30,"") ->  | M28: =IF(M2=$B$28,'Entry Cr&Dr'!$J$30,"") ->  | N28: =IF(N2=$B$28,'Entry Cr&Dr'!$J$30,"") ->  | O28: =IF(O2=$B$28,'Entry Cr&Dr'!$J$30,"") ->  | P28: =IF(P2=$B$28,'Entry Cr&Dr'!$J$30,"") ->  | Q28: =IF(Q2=$B$28,'Entry Cr&Dr'!$J$30,"") ->  | R28: =IF(R2=$B$28,'Entry Cr&Dr'!$J$30,"") ->  | S28: =IF(S2=$B$28,'Entry Cr&Dr'!$J$30,"") ->  | T28: =IF(T2=$B$28,'Entry Cr&Dr'!$J$30,"") ->  | U28: =IF(U2=$B$28,'Entry Cr&Dr'!$J$30,"") ->  | V28: =IF(V2=$B$28,'Entry Cr&Dr'!$J$30,"") -> 
A29: =IF('Entry Cr&Dr'!G31="","",'Entry Cr&Dr'!G31) -> 2020-07-27 | B29: =IF('Entry Cr&Dr'!H31="","",'Entry Cr&Dr'!H31) ->  | C29: =IF('Entry Cr&Dr'!I31="","",'Entry Cr&Dr'!I31) ->  | D29: =IF(D2=$B$29,'Entry Cr&Dr'!$J$31,"") ->  | E29: =IF(E2=$B$29,'Entry Cr&Dr'!$J$31,"") ->  | F29: =IF(F2=$B$29,'Entry Cr&Dr'!$J$31,"") ->  | G29: =IF(G2=$B$29,'Entry Cr&Dr'!$J$31,"") ->  | H29: =IF(H2=$B$29,'Entry Cr&Dr'!$J$31,"") ->  | I29: =IF(I2=$B$29,'Entry Cr&Dr'!$J$31,"") ->  | J29: =IF(J2=$B$29,'Entry Cr&Dr'!$J$31,"") ->  | K29: =IF(K2=$B$29,'Entry Cr&Dr'!$J$31,"") ->  | L29: =IF(L2=$B$29,'Entry Cr&Dr'!$J$31,"") ->  | M29: =IF(M2=$B$29,'Entry Cr&Dr'!$J$31,"") ->  | N29: =IF(N2=$B$29,'Entry Cr&Dr'!$J$31,"") ->  | O29: =IF(O2=$B$29,'Entry Cr&Dr'!$J$31,"") ->  | P29: =IF(P2=$B$29,'Entry Cr&Dr'!$J$31,"") ->  | Q29: =IF(Q2=$B$29,'Entry Cr&Dr'!$J$31,"") ->  | R29: =IF(R2=$B$29,'Entry Cr&Dr'!$J$31,"") ->  | S29: =IF(S2=$B$29,'Entry Cr&Dr'!$J$31,"") ->  | T29: =IF(T2=$B$29,'Entry Cr&Dr'!$J$31,"") ->  | U29: =IF(U2=$B$29,'Entry Cr&Dr'!$J$31,"") ->  | V29: =IF(V2=$B$29,'Entry Cr&Dr'!$J$31,"") -> 
A30: =IF('Entry Cr&Dr'!G32="","",'Entry Cr&Dr'!G32) -> 2020-07-28 | B30: =IF('Entry Cr&Dr'!H32="","",'Entry Cr&Dr'!H32) ->  | C30: =IF('Entry Cr&Dr'!I32="","",'Entry Cr&Dr'!I32) ->  | D30: =IF(D2=$B$30,'Entry Cr&Dr'!$J$32,"") ->  | E30: =IF(E2=$B$30,'Entry Cr&Dr'!$J$32,"") ->  | F30: =IF(F2=$B$30,'Entry Cr&Dr'!$J$32,"") ->  | G30: =IF(G2=$B$30,'Entry Cr&Dr'!$J$32,"") ->  | H30: =IF(H2=$B$30,'Entry Cr&Dr'!$J$32,"") ->  | I30: =IF(I2=$B$30,'Entry Cr&Dr'!$J$32,"") ->  | J30: =IF(J2=$B$30,'Entry Cr&Dr'!$J$32,"") ->  | K30: =IF(K2=$B$30,'Entry Cr&Dr'!$J$32,"") ->  | L30: =IF(L2=$B$30,'Entry Cr&Dr'!$J$32,"") ->  | M30: =IF(M2=$B$30,'Entry Cr&Dr'!$J$32,"") ->  | N30: =IF(N2=$B$30,'Entry Cr&Dr'!$J$32,"") ->  | O30: =IF(O2=$B$30,'Entry Cr&Dr'!$J$32,"") ->  | P30: =IF(P2=$B$30,'Entry Cr&Dr'!$J$32,"") ->  | Q30: =IF(Q2=$B$30,'Entry Cr&Dr'!$J$32,"") ->  | R30: =IF(R2=$B$30,'Entry Cr&Dr'!$J$32,"") ->  | S30: =IF(S2=$B$30,'Entry Cr&Dr'!$J$32,"") ->  | T30: =IF(T2=$B$30,'Entry Cr&Dr'!$J$32,"") ->  | U30: =IF(U2=$B$30,'Entry Cr&Dr'!$J$32,"") ->  | V30: =IF(V2=$B$30,'Entry Cr&Dr'!$J$32,"") -> 
A31: =IF('Entry Cr&Dr'!G33="","",'Entry Cr&Dr'!G33) -> 2020-07-29 | B31: =IF('Entry Cr&Dr'!H33="","",'Entry Cr&Dr'!H33) ->  | C31: =IF('Entry Cr&Dr'!I33="","",'Entry Cr&Dr'!I33) ->  | D31: =IF(D2=$B$31,'Entry Cr&Dr'!$J$33,"") ->  | E31: =IF(E2=$B$31,'Entry Cr&Dr'!$J$33,"") ->  | F31: =IF(F2=$B$31,'Entry Cr&Dr'!$J$33,"") ->  | G31: =IF(G2=$B$31,'Entry Cr&Dr'!$J$33,"") ->  | H31: =IF(H2=$B$31,'Entry Cr&Dr'!$J$33,"") ->  | I31: =IF(I2=$B$31,'Entry Cr&Dr'!$J$33,"") ->  | J31: =IF(J2=$B$31,'Entry Cr&Dr'!$J$33,"") ->  | K31: =IF(K2=$B$31,'Entry Cr&Dr'!$J$33,"") ->  | L31: =IF(L2=$B$31,'Entry Cr&Dr'!$J$33,"") ->  | M31: =IF(M2=$B$31,'Entry Cr&Dr'!$J$33,"") ->  | N31: =IF(N2=$B$31,'Entry Cr&Dr'!$J$33,"") ->  | O31: =IF(O2=$B$31,'Entry Cr&Dr'!$J$33,"") ->  | P31: =IF(P2=$B$31,'Entry Cr&Dr'!$J$33,"") ->  | Q31: =IF(Q2=$B$31,'Entry Cr&Dr'!$J$33,"") ->  | R31: =IF(R2=$B$31,'Entry Cr&Dr'!$J$33,"") ->  | S31: =IF(S2=$B$31,'Entry Cr&Dr'!$J$33,"") ->  | T31: =IF(T2=$B$31,'Entry Cr&Dr'!$J$33,"") ->  | U31: =IF(U2=$B$31,'Entry Cr&Dr'!$J$33,"") ->  | V31: =IF(V2=$B$31,'Entry Cr&Dr'!$J$33,"") -> 
A32: =IF('Entry Cr&Dr'!G34="","",'Entry Cr&Dr'!G34) -> 2020-07-30 | B32: =IF('Entry Cr&Dr'!H34="","",'Entry Cr&Dr'!H34) ->  | C32: =IF('Entry Cr&Dr'!I34="","",'Entry Cr&Dr'!I34) ->  | D32: =IF(D2=$B$32,'Entry Cr&Dr'!$J$34,"") ->  | E32: =IF(E2=$B$32,'Entry Cr&Dr'!$J$34,"") ->  | F32: =IF(F2=$B$32,'Entry Cr&Dr'!$J$34,"") ->  | G32: =IF(G2=$B$32,'Entry Cr&Dr'!$J$34,"") ->  | H32: =IF(H2=$B$32,'Entry Cr&Dr'!$J$34,"") ->  | I32: =IF(I2=$B$32,'Entry Cr&Dr'!$J$34,"") ->  | J32: =IF(J2=$B$32,'Entry Cr&Dr'!$J$34,"") ->  | K32: =IF(K2=$B$32,'Entry Cr&Dr'!$J$34,"") ->  | L32: =IF(L2=$B$32,'Entry Cr&Dr'!$J$34,"") ->  | M32: =IF(M2=$B$32,'Entry Cr&Dr'!$J$34,"") ->  | N32: =IF(N2=$B$32,'Entry Cr&Dr'!$J$34,"") ->  | O32: =IF(O2=$B$32,'Entry Cr&Dr'!$J$34,"") ->  | P32: =IF(P2=$B$32,'Entry Cr&Dr'!$J$34,"") ->  | Q32: =IF(Q2=$B$32,'Entry Cr&Dr'!$J$34,"") ->  | R32: =IF(R2=$B$32,'Entry Cr&Dr'!$J$34,"") ->  | S32: =IF(S2=$B$32,'Entry Cr&Dr'!$J$34,"") ->  | T32: =IF(T2=$B$32,'Entry Cr&Dr'!$J$34,"") ->  | U32: =IF(U2=$B$32,'Entry Cr&Dr'!$J$34,"") ->  | V32: =IF(V2=$B$32,'Entry Cr&Dr'!$J$34,"") -> 
A33: =IF('Entry Cr&Dr'!G35="","",'Entry Cr&Dr'!G35) -> 2020-07-31 | B33: =IF('Entry Cr&Dr'!H35="","",'Entry Cr&Dr'!H35) ->  | C33: =IF('Entry Cr&Dr'!I35="","",'Entry Cr&Dr'!I35) ->  | D33: =IF(D2=$B$33,'Entry Cr&Dr'!$J$35,"") ->  | E33: =IF(E2=$B$33,'Entry Cr&Dr'!$J$35,"") ->  | F33: =IF(F2=$B$33,'Entry Cr&Dr'!$J$35,"") ->  | G33: =IF(G2=$B$33,'Entry Cr&Dr'!$J$35,"") ->  | H33: =IF(H2=$B$33,'Entry Cr&Dr'!$J$35,"") ->  | I33: =IF(I2=$B$33,'Entry Cr&Dr'!$J$35,"") ->  | J33: =IF(J2=$B$33,'Entry Cr&Dr'!$J$35,"") ->  | K33: =IF(K2=$B$33,'Entry Cr&Dr'!$J$35,"") ->  | L33: =IF(L2=$B$33,'Entry Cr&Dr'!$J$35,"") ->  | M33: =IF(M2=$B$33,'Entry Cr&Dr'!$J$35,"") ->  | N33: =IF(N2=$B$33,'Entry Cr&Dr'!$J$35,"") ->  | O33: =IF(O2=$B$33,'Entry Cr&Dr'!$J$35,"") ->  | P33: =IF(P2=$B$33,'Entry Cr&Dr'!$J$35,"") ->  | Q33: =IF(Q2=$B$33,'Entry Cr&Dr'!$J$35,"") ->  | R33: =IF(R2=$B$33,'Entry Cr&Dr'!$J$35,"") ->  | S33: =IF(S2=$B$33,'Entry Cr&Dr'!$J$35,"") ->  | T33: =IF(T2=$B$33,'Entry Cr&Dr'!$J$35,"") ->  | U33: =IF(U2=$B$33,'Entry Cr&Dr'!$J$35,"") ->  | V33: =IF(V2=$B$33,'Entry Cr&Dr'!$J$35,"") -> 
A34: =IF('Entry Cr&Dr'!G36="","",'Entry Cr&Dr'!G36) -> 2020-08-01 | B34: =IF('Entry Cr&Dr'!H36="","",'Entry Cr&Dr'!H36) ->  | C34: =IF('Entry Cr&Dr'!I36="","",'Entry Cr&Dr'!I36) ->  | D34: =IF(D2=$B$34,'Entry Cr&Dr'!$J$36,"") ->  | E34: =IF(E2=$B$34,'Entry Cr&Dr'!$J$36,"") ->  | F34: =IF(F2=$B$34,'Entry Cr&Dr'!$J$36,"") ->  | G34: =IF(G2=$B$34,'Entry Cr&Dr'!$J$36,"") ->  | H34: =IF(H2=$B$34,'Entry Cr&Dr'!$J$36,"") ->  | I34: =IF(I2=$B$34,'Entry Cr&Dr'!$J$36,"") ->  | J34: =IF(J2=$B$34,'Entry Cr&Dr'!$J$36,"") ->  | K34: =IF(K2=$B$34,'Entry Cr&Dr'!$J$36,"") ->  | L34: =IF(L2=$B$34,'Entry Cr&Dr'!$J$36,"") ->  | M34: =IF(M2=$B$34,'Entry Cr&Dr'!$J$36,"") ->  | N34: =IF(N2=$B$34,'Entry Cr&Dr'!$J$36,"") ->  | O34: =IF(O2=$B$34,'Entry Cr&Dr'!$J$36,"") ->  | P34: =IF(P2=$B$34,'Entry Cr&Dr'!$J$36,"") ->  | Q34: =IF(Q2=$B$34,'Entry Cr&Dr'!$J$36,"") ->  | R34: =IF(R2=$B$34,'Entry Cr&Dr'!$J$36,"") ->  | S34: =IF(S2=$B$34,'Entry Cr&Dr'!$J$36,"") ->  | T34: =IF(T2=$B$34,'Entry Cr&Dr'!$J$36,"") ->  | U34: =IF(U2=$B$34,'Entry Cr&Dr'!$J$36,"") ->  | V34: =IF(V2=$B$34,'Entry Cr&Dr'!$J$36,"") -> 
A35: =IF('Entry Cr&Dr'!G37="","",'Entry Cr&Dr'!G37) -> 2020-08-02 | B35: =IF('Entry Cr&Dr'!H37="","",'Entry Cr&Dr'!H37) ->  | C35: =IF('Entry Cr&Dr'!I37="","",'Entry Cr&Dr'!I37) ->  | D35: =IF(D2=$B$35,'Entry Cr&Dr'!$J$37,"") ->  | E35: =IF(E2=$B$35,'Entry Cr&Dr'!$J$37,"") ->  | F35: =IF(F2=$B$35,'Entry Cr&Dr'!$J$37,"") ->  | G35: =IF(G2=$B$35,'Entry Cr&Dr'!$J$37,"") ->  | H35: =IF(H2=$B$35,'Entry Cr&Dr'!$J$37,"") ->  | I35: =IF(I2=$B$35,'Entry Cr&Dr'!$J$37,"") ->  | J35: =IF(J2=$B$35,'Entry Cr&Dr'!$J$37,"") ->  | K35: =IF(K2=$B$35,'Entry Cr&Dr'!$J$37,"") ->  | L35: =IF(L2=$B$35,'Entry Cr&Dr'!$J$37,"") ->  | M35: =IF(M2=$B$35,'Entry Cr&Dr'!$J$37,"") ->  | N35: =IF(N2=$B$35,'Entry Cr&Dr'!$J$37,"") ->  | O35: =IF(O2=$B$35,'Entry Cr&Dr'!$J$37,"") ->  | P35: =IF(P2=$B$35,'Entry Cr&Dr'!$J$37,"") ->  | Q35: =IF(Q2=$B$35,'Entry Cr&Dr'!$J$37,"") ->  | R35: =IF(R2=$B$35,'Entry Cr&Dr'!$J$37,"") ->  | S35: =IF(S2=$B$35,'Entry Cr&Dr'!$J$37,"") ->  | T35: =IF(T2=$B$35,'Entry Cr&Dr'!$J$37,"") ->  | U35: =IF(U2=$B$35,'Entry Cr&Dr'!$J$37,"") ->  | V35: =IF(V2=$B$35,'Entry Cr&Dr'!$J$37,"") -> 
A36: =IF('Entry Cr&Dr'!G38="","",'Entry Cr&Dr'!G38) -> 2020-08-03 | B36: =IF('Entry Cr&Dr'!H38="","",'Entry Cr&Dr'!H38) ->  | C36: =IF('Entry Cr&Dr'!I38="","",'Entry Cr&Dr'!I38) ->  | D36: =IF(D2=$B$36,'Entry Cr&Dr'!$J$38,"") ->  | E36: =IF(E2=$B$36,'Entry Cr&Dr'!$J$38,"") ->  | F36: =IF(F2=$B$36,'Entry Cr&Dr'!$J$38,"") ->  | G36: =IF(G2=$B$36,'Entry Cr&Dr'!$J$38,"") ->  | H36: =IF(H2=$B$36,'Entry Cr&Dr'!$J$38,"") ->  | I36: =IF(I2=$B$36,'Entry Cr&Dr'!$J$38,"") ->  | J36: =IF(J2=$B$36,'Entry Cr&Dr'!$J$38,"") ->  | K36: =IF(K2=$B$36,'Entry Cr&Dr'!$J$38,"") ->  | L36: =IF(L2=$B$36,'Entry Cr&Dr'!$J$38,"") ->  | M36: =IF(M2=$B$36,'Entry Cr&Dr'!$J$38,"") ->  | N36: =IF(N2=$B$36,'Entry Cr&Dr'!$J$38,"") ->  | O36: =IF(O2=$B$36,'Entry Cr&Dr'!$J$38,"") ->  | P36: =IF(P2=$B$36,'Entry Cr&Dr'!$J$38,"") ->  | Q36: =IF(Q2=$B$36,'Entry Cr&Dr'!$J$38,"") ->  | R36: =IF(R2=$B$36,'Entry Cr&Dr'!$J$38,"") ->  | S36: =IF(S2=$B$36,'Entry Cr&Dr'!$J$38,"") ->  | T36: =IF(T2=$B$36,'Entry Cr&Dr'!$J$38,"") ->  | U36: =IF(U2=$B$36,'Entry Cr&Dr'!$J$38,"") ->  | V36: =IF(V2=$B$36,'Entry Cr&Dr'!$J$38,"") -> 
A37: =IF('Entry Cr&Dr'!G39="","",'Entry Cr&Dr'!G39) -> 2020-08-04 | B37: =IF('Entry Cr&Dr'!H39="","",'Entry Cr&Dr'!H39) ->  | C37: =IF('Entry Cr&Dr'!I39="","",'Entry Cr&Dr'!I39) ->  | D37: =IF(D2=$B$37,'Entry Cr&Dr'!$J$39,"") ->  | E37: =IF(E2=$B$37,'Entry Cr&Dr'!$J$39,"") ->  | F37: =IF(F2=$B$37,'Entry Cr&Dr'!$J$39,"") ->  | G37: =IF(G2=$B$37,'Entry Cr&Dr'!$J$39,"") ->  | H37: =IF(H2=$B$37,'Entry Cr&Dr'!$J$39,"") ->  | I37: =IF(I2=$B$37,'Entry Cr&Dr'!$J$39,"") ->  | J37: =IF(J2=$B$37,'Entry Cr&Dr'!$J$39,"") ->  | K37: =IF(K2=$B$37,'Entry Cr&Dr'!$J$39,"") ->  | L37: =IF(L2=$B$37,'Entry Cr&Dr'!$J$39,"") ->  | M37: =IF(M2=$B$37,'Entry Cr&Dr'!$J$39,"") ->  | N37: =IF(N2=$B$37,'Entry Cr&Dr'!$J$39,"") ->  | O37: =IF(O2=$B$37,'Entry Cr&Dr'!$J$39,"") ->  | P37: =IF(P2=$B$37,'Entry Cr&Dr'!$J$39,"") ->  | Q37: =IF(Q2=$B$37,'Entry Cr&Dr'!$J$39,"") ->  | R37: =IF(R2=$B$37,'Entry Cr&Dr'!$J$39,"") ->  | S37: =IF(S2=$B$37,'Entry Cr&Dr'!$J$39,"") ->  | T37: =IF(T2=$B$37,'Entry Cr&Dr'!$J$39,"") ->  | U37: =IF(U2=$B$37,'Entry Cr&Dr'!$J$39,"") ->  | V37: =IF(V2=$B$37,'Entry Cr&Dr'!$J$39,"") -> 
A38: =IF('Entry Cr&Dr'!G40="","",'Entry Cr&Dr'!G40) -> 2020-08-05 | B38: =IF('Entry Cr&Dr'!H40="","",'Entry Cr&Dr'!H40) ->  | C38: =IF('Entry Cr&Dr'!I40="","",'Entry Cr&Dr'!I40) ->  | D38: =IF(D2=$B$38,'Entry Cr&Dr'!$J$40,"") ->  | E38: =IF(E2=$B$38,'Entry Cr&Dr'!$J$40,"") ->  | F38: =IF(F2=$B$38,'Entry Cr&Dr'!$J$40,"") ->  | G38: =IF(G2=$B$38,'Entry Cr&Dr'!$J$40,"") ->  | H38: =IF(H2=$B$38,'Entry Cr&Dr'!$J$40,"") ->  | I38: =IF(I2=$B$38,'Entry Cr&Dr'!$J$40,"") ->  | J38: =IF(J2=$B$38,'Entry Cr&Dr'!$J$40,"") ->  | K38: =IF(K2=$B$38,'Entry Cr&Dr'!$J$40,"") ->  | L38: =IF(L2=$B$38,'Entry Cr&Dr'!$J$40,"") ->  | M38: =IF(M2=$B$38,'Entry Cr&Dr'!$J$40,"") ->  | N38: =IF(N2=$B$38,'Entry Cr&Dr'!$J$40,"") ->  | O38: =IF(O2=$B$38,'Entry Cr&Dr'!$J$40,"") ->  | P38: =IF(P2=$B$38,'Entry Cr&Dr'!$J$40,"") ->  | Q38: =IF(Q2=$B$38,'Entry Cr&Dr'!$J$40,"") ->  | R38: =IF(R2=$B$38,'Entry Cr&Dr'!$J$40,"") ->  | S38: =IF(S2=$B$38,'Entry Cr&Dr'!$J$40,"") ->  | T38: =IF(T2=$B$38,'Entry Cr&Dr'!$J$40,"") ->  | U38: =IF(U2=$B$38,'Entry Cr&Dr'!$J$40,"") ->  | V38: =IF(V2=$B$38,'Entry Cr&Dr'!$J$40,"") -> 
A39: =IF('Entry Cr&Dr'!G41="","",'Entry Cr&Dr'!G41) -> 2020-08-06 | B39: =IF('Entry Cr&Dr'!H41="","",'Entry Cr&Dr'!H41) ->  | C39: =IF('Entry Cr&Dr'!I41="","",'Entry Cr&Dr'!I41) ->  | D39: =IF(D2=$B$39,'Entry Cr&Dr'!$J$41,"") ->  | E39: =IF(E2=$B$39,'Entry Cr&Dr'!$J$41,"") ->  | F39: =IF(F2=$B$39,'Entry Cr&Dr'!$J$41,"") ->  | G39: =IF(G2=$B$39,'Entry Cr&Dr'!$J$41,"") ->  | H39: =IF(H2=$B$39,'Entry Cr&Dr'!$J$41,"") ->  | I39: =IF(I2=$B$39,'Entry Cr&Dr'!$J$41,"") ->  | J39: =IF(J2=$B$39,'Entry Cr&Dr'!$J$41,"") ->  | K39: =IF(K2=$B$39,'Entry Cr&Dr'!$J$41,"") ->  | L39: =IF(L2=$B$39,'Entry Cr&Dr'!$J$41,"") ->  | M39: =IF(M2=$B$39,'Entry Cr&Dr'!$J$41,"") ->  | N39: =IF(N2=$B$39,'Entry Cr&Dr'!$J$41,"") ->  | O39: =IF(O2=$B$39,'Entry Cr&Dr'!$J$41,"") ->  | P39: =IF(P2=$B$39,'Entry Cr&Dr'!$J$41,"") ->  | Q39: =IF(Q2=$B$39,'Entry Cr&Dr'!$J$41,"") ->  | R39: =IF(R2=$B$39,'Entry Cr&Dr'!$J$41,"") ->  | S39: =IF(S2=$B$39,'Entry Cr&Dr'!$J$41,"") ->  | T39: =IF(T2=$B$39,'Entry Cr&Dr'!$J$41,"") ->  | U39: =IF(U2=$B$39,'Entry Cr&Dr'!$J$41,"") ->  | V39: =IF(V2=$B$39,'Entry Cr&Dr'!$J$41,"") -> 
A40: =IF('Entry Cr&Dr'!G42="","",'Entry Cr&Dr'!G42) -> 2020-08-07 | B40: =IF('Entry Cr&Dr'!H42="","",'Entry Cr&Dr'!H42) ->  | C40: =IF('Entry Cr&Dr'!I42="","",'Entry Cr&Dr'!I42) ->  | D40: =IF(D2=$B$40,'Entry Cr&Dr'!$J$42,"") ->  | E40: =IF(E2=$B$40,'Entry Cr&Dr'!$J$42,"") ->  | F40: =IF(F2=$B$40,'Entry Cr&Dr'!$J$42,"") ->  | G40: =IF(G2=$B$40,'Entry Cr&Dr'!$J$42,"") ->  | H40: =IF(H2=$B$40,'Entry Cr&Dr'!$J$42,"") ->  | I40: =IF(I2=$B$40,'Entry Cr&Dr'!$J$42,"") ->  | J40: =IF(J2=$B$40,'Entry Cr&Dr'!$J$42,"") ->  | K40: =IF(K2=$B$40,'Entry Cr&Dr'!$J$42,"") ->  | L40: =IF(L2=$B$40,'Entry Cr&Dr'!$J$42,"") ->  | M40: =IF(M2=$B$40,'Entry Cr&Dr'!$J$42,"") ->  | N40: =IF(N2=$B$40,'Entry Cr&Dr'!$J$42,"") ->  | O40: =IF(O2=$B$40,'Entry Cr&Dr'!$J$42,"") ->  | P40: =IF(P2=$B$40,'Entry Cr&Dr'!$J$42,"") ->  | Q40: =IF(Q2=$B$40,'Entry Cr&Dr'!$J$42,"") ->  | R40: =IF(R2=$B$40,'Entry Cr&Dr'!$J$42,"") ->  | S40: =IF(S2=$B$40,'Entry Cr&Dr'!$J$42,"") ->  | T40: =IF(T2=$B$40,'Entry Cr&Dr'!$J$42,"") ->  | U40: =IF(U2=$B$40,'Entry Cr&Dr'!$J$42,"") ->  | V40: =IF(V2=$B$40,'Entry Cr&Dr'!$J$42,"") -> 
A41: =IF('Entry Cr&Dr'!G43="","",'Entry Cr&Dr'!G43) -> 2020-08-08 | B41: =IF('Entry Cr&Dr'!H43="","",'Entry Cr&Dr'!H43) ->  | C41: =IF('Entry Cr&Dr'!I43="","",'Entry Cr&Dr'!I43) ->  | D41: =IF(D2=$B$41,'Entry Cr&Dr'!$J$43,"") ->  | E41: =IF(E2=$B$41,'Entry Cr&Dr'!$J$43,"") ->  | F41: =IF(F2=$B$41,'Entry Cr&Dr'!$J$43,"") ->  | G41: =IF(G2=$B$41,'Entry Cr&Dr'!$J$43,"") ->  | H41: =IF(H2=$B$41,'Entry Cr&Dr'!$J$43,"") ->  | I41: =IF(I2=$B$41,'Entry Cr&Dr'!$J$43,"") ->  | J41: =IF(J2=$B$41,'Entry Cr&Dr'!$J$43,"") ->  | K41: =IF(K2=$B$41,'Entry Cr&Dr'!$J$43,"") ->  | L41: =IF(L2=$B$41,'Entry Cr&Dr'!$J$43,"") ->  | M41: =IF(M2=$B$41,'Entry Cr&Dr'!$J$43,"") ->  | N41: =IF(N2=$B$41,'Entry Cr&Dr'!$J$43,"") ->  | O41: =IF(O2=$B$41,'Entry Cr&Dr'!$J$43,"") ->  | P41: =IF(P2=$B$41,'Entry Cr&Dr'!$J$43,"") ->  | Q41: =IF(Q2=$B$41,'Entry Cr&Dr'!$J$43,"") ->  | R41: =IF(R2=$B$41,'Entry Cr&Dr'!$J$43,"") ->  | S41: =IF(S2=$B$41,'Entry Cr&Dr'!$J$43,"") ->  | T41: =IF(T2=$B$41,'Entry Cr&Dr'!$J$43,"") ->  | U41: =IF(U2=$B$41,'Entry Cr&Dr'!$J$43,"") ->  | V41: =IF(V2=$B$41,'Entry Cr&Dr'!$J$43,"") -> 
A42: =IF('Entry Cr&Dr'!G44="","",'Entry Cr&Dr'!G44) -> 2020-08-09 | B42: =IF('Entry Cr&Dr'!H44="","",'Entry Cr&Dr'!H44) ->  | C42: =IF('Entry Cr&Dr'!I44="","",'Entry Cr&Dr'!I44) ->  | D42: =IF(D2=$B$42,'Entry Cr&Dr'!$J$44,"") ->  | E42: =IF(E2=$B$42,'Entry Cr&Dr'!$J$44,"") ->  | F42: =IF(F2=$B$42,'Entry Cr&Dr'!$J$44,"") ->  | G42: =IF(G2=$B$42,'Entry Cr&Dr'!$J$44,"") ->  | H42: =IF(H2=$B$42,'Entry Cr&Dr'!$J$44,"") ->  | I42: =IF(I2=$B$42,'Entry Cr&Dr'!$J$44,"") ->  | J42: =IF(J2=$B$42,'Entry Cr&Dr'!$J$44,"") ->  | K42: =IF(K2=$B$42,'Entry Cr&Dr'!$J$44,"") ->  | L42: =IF(L2=$B$42,'Entry Cr&Dr'!$J$44,"") ->  | M42: =IF(M2=$B$42,'Entry Cr&Dr'!$J$44,"") ->  | N42: =IF(N2=$B$42,'Entry Cr&Dr'!$J$44,"") ->  | O42: =IF(O2=$B$42,'Entry Cr&Dr'!$J$44,"") ->  | P42: =IF(P2=$B$42,'Entry Cr&Dr'!$J$44,"") ->  | Q42: =IF(Q2=$B$42,'Entry Cr&Dr'!$J$44,"") ->  | R42: =IF(R2=$B$42,'Entry Cr&Dr'!$J$44,"") ->  | S42: =IF(S2=$B$42,'Entry Cr&Dr'!$J$44,"") ->  | T42: =IF(T2=$B$42,'Entry Cr&Dr'!$J$44,"") ->  | U42: =IF(U2=$B$42,'Entry Cr&Dr'!$J$44,"") ->  | V42: =IF(V2=$B$42,'Entry Cr&Dr'!$J$44,"") -> 
A43: =IF('Entry Cr&Dr'!G45="","",'Entry Cr&Dr'!G45) -> 2020-08-10 | B43: =IF('Entry Cr&Dr'!H45="","",'Entry Cr&Dr'!H45) ->  | C43: =IF('Entry Cr&Dr'!I45="","",'Entry Cr&Dr'!I45) ->  | D43: =IF(D2=$B$43,'Entry Cr&Dr'!$J$45,"") ->  | E43: =IF(E2=$B$43,'Entry Cr&Dr'!$J$45,"") ->  | F43: =IF(F2=$B$43,'Entry Cr&Dr'!$J$45,"") ->  | G43: =IF(G2=$B$43,'Entry Cr&Dr'!$J$45,"") ->  | H43: =IF(H2=$B$43,'Entry Cr&Dr'!$J$45,"") ->  | I43: =IF(I2=$B$43,'Entry Cr&Dr'!$J$45,"") ->  | J43: =IF(J2=$B$43,'Entry Cr&Dr'!$J$45,"") ->  | K43: =IF(K2=$B$43,'Entry Cr&Dr'!$J$45,"") ->  | L43: =IF(L2=$B$43,'Entry Cr&Dr'!$J$45,"") ->  | M43: =IF(M2=$B$43,'Entry Cr&Dr'!$J$45,"") ->  | N43: =IF(N2=$B$43,'Entry Cr&Dr'!$J$45,"") ->  | O43: =IF(O2=$B$43,'Entry Cr&Dr'!$J$45,"") ->  | P43: =IF(P2=$B$43,'Entry Cr&Dr'!$J$45,"") ->  | Q43: =IF(Q2=$B$43,'Entry Cr&Dr'!$J$45,"") ->  | R43: =IF(R2=$B$43,'Entry Cr&Dr'!$J$45,"") ->  | S43: =IF(S2=$B$43,'Entry Cr&Dr'!$J$45,"") ->  | T43: =IF(T2=$B$43,'Entry Cr&Dr'!$J$45,"") ->  | U43: =IF(U2=$B$43,'Entry Cr&Dr'!$J$45,"") ->  | V43: =IF(V2=$B$43,'Entry Cr&Dr'!$J$45,"") -> 
A45: खर्च | D45: =SUM(D3:D43) -> 0.00 | E45: =SUM(E3:E43) -> 0.00 | F45: 0.00 | G45: 0.00 | H45: 50545.00 | I45: 0.00 | J45: 0.00 | K45: 0.00 | L45: 0.00 | M45: 0.00 | N45: 0.00 | O45: 0.00 | P45: 0.00 | Q45: 0.00 | R45: 0.00 | S45: 0.00 | T45: 0.00 | U45: 0.00 | V45: 0.00 | W45: =SUM(D45:V45,X45) -> 50545.00 | X45: =SUM(X3:X43) -> 0.00 | Y45: =W45-X45 -> 50545.00
A46: शेष | D46: =D47-D45 -> 50000.00 | E46: =E47-E45 -> 15226.40 | F46: 500.00 | G46: 3252.00 | H46: 10118.42 | I46: 3600.00 | J46: 7150.00 | K46: 20740.00 | L46: 10000.00 | M46: =M47-M45 -> 0.00 | N46: 0.00 | O46: 0.00 | P46: 0.00 | Q46: 0.00 | R46: 0.00 | S46: 0.00 | T46: 3526.00 | U46: 0.00 | V46: 32824.72 | W46: 162487.54 | X46: 5550.00 | Y46: 156937.54
A47: योग | D47: =Receipt!D48 -> 50000.00 | E47: =Receipt!E48 -> 15226.40 | F47: =Receipt!F48 -> 500.00 | G47: =Receipt!G48 -> 3252.00 | H47: =Receipt!H48 -> 60663.42 | I47: =Receipt!I48 -> 3600.00 | J47: =Receipt!J48 -> 7150.00 | K47: =Receipt!K48 -> 20740.00 | L47: =Receipt!L48 -> 10000.00 | M47: =Receipt!M48 -> 0.00 | N47: =Receipt!N48 -> 0.00 | O47: =Receipt!O48 -> 0.00 | P47: =Receipt!P48 -> 0.00 | Q47: =Receipt!Q48 -> 0.00 | R47: =Receipt!R48 -> 0.00 | S47: =Receipt!S48 -> 0.00 | T47: =Receipt!T48 -> 3526.00 | U47: =Receipt!U48 -> 0.00 | V47: =Receipt!V48 -> 32824.72 | W47: =Receipt!W48 -> 213032.54 | X47: =Receipt!X48 -> 5550.00 | Y47: =Receipt!Y48 -> 207482.54
